Department Family,Entity,Date,Expense Type,Expense Area,Supplier,Transaction Number,Amount,Description,FAC
Ministry of Justice,MoJ HQ,04-Aug-14 ,912200-Other Movements in Year,KY300-Legal Services Strategy,LEGAL AID AGENCY (LAA),4818,"55,806,000.00 ",Funding Transfer,
Ministry of Justice,MoJ HQ,11-Aug-14 ,912200-Other Movements in Year,KY300-Legal Services Strategy,LEGAL AID AGENCY (LAA),4842,"24,272,000.00 ",Funding Transfer,
Ministry of Justice,MoJ HQ,26-Aug-14 ,912200-Other Movements in Year,KY300-Legal Services Strategy,LEGAL AID AGENCY (LAA),4885,"24,064,000.00 ",Funding Transfer,
Ministry of Justice,MoJ HQ,18-Aug-14 ,912200-Other Movements in Year,KY300-Legal Services Strategy,LEGAL AID AGENCY (LAA),4874,"21,564,000.00 ",Funding Transfer,
Ministry of Justice,MoJ HQ,01-Aug-14 ,245000-Grants in Aid to NDPBs,KY340-Access to Justice Delivery,JUDICIAL APPOINTMENTS COMMISSION (JAC),4810,"1,000,000.00 ",JAC GIA Grant,
Ministry of Justice,MoJ HQ,29-Aug-14 ,265000-IT & Telecommunications,LZ600-Transforming Justice,ATOS IT SERVICES UK LTD,1140952,25.78 ,IT peripherals/individual ordered software and equipment,
Ministry of Justice,MoJ HQ,29-Aug-14 ,265000-IT & Telecommunications,LZ600-Transforming Justice,ATOS IT SERVICES UK LTD,1140952,25.78 ,IT peripherals/individual ordered software and equipment,
Ministry of Justice,MoJ HQ,29-Aug-14 ,265000-IT & Telecommunications,LZ600-Transforming Justice,ATOS IT SERVICES UK LTD,1140952,25.78 ,IT peripherals/individual ordered software and equipment,
Ministry of Justice,MoJ HQ,29-Aug-14 ,265000-IT & Telecommunications,LZ600-Transforming Justice,ATOS IT SERVICES UK LTD,1140952,25.78 ,IT peripherals/individual ordered software and equipment,
Ministry of Justice,MoJ HQ,29-Aug-14 ,265000-IT & Telecommunications,LZ600-Transforming Justice,ATOS IT SERVICES UK LTD,1140952,25.78 ,IT peripherals/individual ordered software and equipment,
Ministry of Justice,MoJ HQ,21-Aug-14 ,266000-Judicial Costs,LZ600-Transforming Justice,THOMSON REUTERS T/A SWEET & MAXWELL LTD,1140553,"74,124.00 ",CID - Libraries  - Publications - McGregor on damages (19th ed.),
Ministry of Justice,MoJ HQ,26-Aug-14 ,266000-Judicial Costs,LZ600-Transforming Justice,HAMMICKS LEGAL INFORMATION SERVICES,1140646,"25,190.00 ",CID - Libraries - Publications - At a Glance 2014/15-0809-6,
Ministry of Justice,MoJ HQ,04-Aug-14 ,223000-Other Expenditure,LZ600-Transforming Justice,TNT UK LTD,1139425,"63,428.36 ","Monthly 'storage',  'archieving' and 'activity' costs for paper records stored by TNT on MoJ's behalf at its secure repositories.",
Ministry of Justice,MoJ HQ,29-Aug-14 ,265000-IT & Telecommunications,LZ600-Transforming Justice,ATOS IT SERVICES UK LTD,1140952,25.78 ,IT peripherals/individual ordered software and equipment,
Ministry of Justice,MoJ HQ,29-Aug-14 ,265000-IT & Telecommunications,LZ600-Transforming Justice,ATOS IT SERVICES UK LTD,1140952,51.56 ,IT peripherals/individual ordered software and equipment,
Ministry of Justice,MoJ HQ,21-Aug-14 ,265000-IT & Telecommunications,LZ600-Transforming Justice,CGI IT UK LTD,1140371,"22,123.00 ",L-R-4172-01 TRIM additional Storage Space (MOJ EDRM system storage),
Ministry of Justice,MoJ HQ,21-Aug-14 ,223000-Other Expenditure,MF600-Directorate of Judicial Offices,CALDER CONFERENCES LTD,1140363,"24,179.67 ","Conference package at Millennium Gloucester for 2/3 day conference for European Arrest Warrant Judicial Network Project, option reference GS41319/1",
Ministry of Justice,MoJ HQ,21-Aug-14 ,223000-Other Expenditure,MF600-Directorate of Judicial Offices,CALDER CONFERENCES LTD,1140363,"2,184.00 ","Conference package at Millennium Gloucester for 2/3 day conference for European Arrest Warrant Judicial Network Project, option reference GS41319/1 (VAT exempt)",
Ministry of Justice,MoJ HQ,29-Aug-14 ,265000-IT & Telecommunications,MF600-Directorate of Judicial Offices,ATOS IT SERVICES UK LTD,1140952,25.78 ,IT peripherals/individual ordered software and equipment,
Ministry of Justice,MoJ HQ,29-Aug-14 ,265000-IT & Telecommunications,MF600-Directorate of Judicial Offices,ATOS IT SERVICES UK LTD,1140952,25.78 ,IT peripherals/individual ordered software and equipment,
Ministry of Justice,MoJ HQ,29-Aug-14 ,265000-IT & Telecommunications,MF600-Directorate of Judicial Offices,ATOS IT SERVICES UK LTD,1140952,25.78 ,IT peripherals/individual ordered software and equipment,
Ministry of Justice,MoJ HQ,29-Aug-14 ,265000-IT & Telecommunications,MF600-Directorate of Judicial Offices,ATOS IT SERVICES UK LTD,1140952,11.17 ,IT peripherals/individual ordered software and equipment,
Ministry of Justice,MoJ HQ,29-Aug-14 ,265000-IT & Telecommunications,MF600-Directorate of Judicial Offices,ATOS IT SERVICES UK LTD,1140952,82.78 ,IT peripherals/individual ordered software and equipment,
Ministry of Justice,MoJ HQ,29-Aug-14 ,265000-IT & Telecommunications,MF600-Directorate of Judicial Offices,ATOS IT SERVICES UK LTD,1140952,82.78 ,IT peripherals/individual ordered software and equipment,
Ministry of Justice,MoJ HQ,29-Aug-14 ,265000-IT & Telecommunications,MF600-Directorate of Judicial Offices,ATOS IT SERVICES UK LTD,1140952,25.78 ,IT peripherals/individual ordered software and equipment,
Ministry of Justice,MoJ HQ,29-Aug-14 ,265000-IT & Telecommunications,MF600-Directorate of Judicial Offices,ATOS IT SERVICES UK LTD,1140952,25.78 ,IT peripherals/individual ordered software and equipment,
Ministry of Justice,MoJ HQ,29-Aug-14 ,265000-IT & Telecommunications,MF600-Directorate of Judicial Offices,ATOS IT SERVICES UK LTD,1140952,25.78 ,IT peripherals/individual ordered software and equipment,
Ministry of Justice,MoJ HQ,29-Aug-14 ,265000-IT & Telecommunications,MF600-Directorate of Judicial Offices,ATOS IT SERVICES UK LTD,1140952,77.34 ,IT peripherals/individual ordered software and equipment,
Ministry of Justice,MoJ HQ,29-Aug-14 ,265000-IT & Telecommunications,MF600-Directorate of Judicial Offices,ATOS IT SERVICES UK LTD,1140952,25.78 ,IT peripherals/individual ordered software and equipment,
Ministry of Justice,MoJ HQ,29-Aug-14 ,265000-IT & Telecommunications,OZ501-HRD Feeder,ATOS IT SERVICES UK LTD,1140952,164.00 ,IT peripherals/individual ordered software and equipment,
Ministry of Justice,MoJ HQ,29-Aug-14 ,265000-IT & Telecommunications,OZ501-HRD Feeder,ATOS IT SERVICES UK LTD,1140952,25.78 ,IT peripherals/individual ordered software and equipment,
Ministry of Justice,MoJ HQ,29-Aug-14 ,265000-IT & Telecommunications,OZ501-HRD Feeder,ATOS IT SERVICES UK LTD,1140952,46.00 ,IT peripherals/individual ordered software and equipment,
Ministry of Justice,MoJ HQ,29-Aug-14 ,265000-IT & Telecommunications,OZ501-HRD Feeder,ATOS IT SERVICES UK LTD,1140952,46.00 ,IT peripherals/individual ordered software and equipment,
Ministry of Justice,MoJ HQ,29-Aug-14 ,265000-IT & Telecommunications,OZ501-HRD Feeder,ATOS IT SERVICES UK LTD,1140952,46.00 ,IT peripherals/individual ordered software and equipment,
Ministry of Justice,MoJ HQ,29-Aug-14 ,265000-IT & Telecommunications,OZ501-HRD Feeder,ATOS IT SERVICES UK LTD,1140952,25.78 ,IT peripherals/individual ordered software and equipment,
Ministry of Justice,MoJ HQ,29-Aug-14 ,265000-IT & Telecommunications,OZ501-HRD Feeder,ATOS IT SERVICES UK LTD,1140952,78.26 ,IT peripherals/individual ordered software and equipment,
Ministry of Justice,MoJ HQ,27-Aug-14 ,226000-Court Costs,RF999-JPG - DGs Office,J S S C - SKILLS FOR JUSTICE#RF20000006,1140753,"626,000.00 ",Project funding (via MOJ) from London Prob Trust following its closure,
Ministry of Justice,MoJ HQ,15-Aug-14 ,246000-Current Grants,RG999-CFLAP Accumulator,CAFCASS,4856,"600,000.00 ",Cafcass GIA funding for NACCC accredited contact centres.,
Ministry of Justice,MoJ HQ,15-Aug-14 ,263000-Other Contracted Out Services,RG999-CFLAP Accumulator,CAFCASS,4857,"325,446.85 ",CAFCASS - Court directed child contact interventions including SPIP and DVPP services,
Ministry of Justice,MoJ HQ,15-Aug-14 ,263000-Other Contracted Out Services,RG999-CFLAP Accumulator,CAFCASS,4855,"321,919.51 ",CAFCASS - Court directed child contact interventions including SPIP and DVPP services,
Ministry of Justice,MoJ HQ,29-Aug-14 ,265000-IT & Telecommunications,RG999-CFLAP Accumulator,ATOS IT SERVICES UK LTD,1140952,205.63 ,"22"" LCD Display",
Ministry of Justice,MoJ HQ,29-Aug-14 ,265000-IT & Telecommunications,RG999-CFLAP Accumulator,ATOS IT SERVICES UK LTD,1140952,113.16 ,IT peripherals/individual ordered software and equipment,
Ministry of Justice,MoJ HQ,29-Aug-14 ,265000-IT & Telecommunications,RG999-CFLAP Accumulator,ATOS IT SERVICES UK LTD,1140952,164.00 ,IT peripherals/individual ordered software and equipment,
Ministry of Justice,MoJ HQ,29-Aug-14 ,265000-IT & Telecommunications,RG999-CFLAP Accumulator,ATOS IT SERVICES UK LTD,1140952,46.00 ,IT peripherals/individual ordered software and equipment,
Ministry of Justice,MoJ HQ,29-Aug-14 ,265000-IT & Telecommunications,RG999-CFLAP Accumulator,ATOS IT SERVICES UK LTD,1140952,25.78 ,IT peripherals/individual ordered software and equipment,
Ministry of Justice,MoJ HQ,29-Aug-14 ,265000-IT & Telecommunications,RG999-CFLAP Accumulator,ATOS IT SERVICES UK LTD,1140952,25.78 ,IT peripherals/individual ordered software and equipment,
Ministry of Justice,MoJ HQ,29-Aug-14 ,265000-IT & Telecommunications,RG999-CFLAP Accumulator,ATOS IT SERVICES UK LTD,1140952,50.90 ,IT peripherals/individual ordered software and equipment,
Ministry of Justice,MoJ HQ,28-Aug-14 ,246000-Current Grants,RG999-CFLAP Accumulator,REUNITE INTERNATIONAL,1140891,"29,000.00 ","Grant to Reunite International Child Abduction Centre. Quarterly funding for the 24/7 operation of its advice line which deals with queries on the prevention of international parental child abduction, contact & relocation.",
Ministry of Justice,MoJ HQ,29-Aug-14 ,265000-IT & Telecommunications,RJ999-JPG - International,ATOS IT SERVICES UK LTD,1140952,164.00 ,IT peripherals/individual ordered software and equipment,
Ministry of Justice,MoJ HQ,29-Aug-14 ,265000-IT & Telecommunications,RJ999-JPG - International,ATOS IT SERVICES UK LTD,1140952,164.00 ,IT peripherals/individual ordered software and equipment,
Ministry of Justice,MoJ HQ,29-Aug-14 ,265000-IT & Telecommunications,RJ999-JPG - International,ATOS IT SERVICES UK LTD,1140952,46.00 ,IT peripherals/individual ordered software and equipment,
Ministry of Justice,MoJ HQ,29-Aug-14 ,265000-IT & Telecommunications,RJ999-JPG - International,ATOS IT SERVICES UK LTD,1140952,25.78 ,IT peripherals/individual ordered software and equipment,
Ministry of Justice,MoJ HQ,29-Aug-14 ,265000-IT & Telecommunications,RJ999-JPG - International,ATOS IT SERVICES UK LTD,1140952,25.78 ,IT peripherals/individual ordered software and equipment,
Ministry of Justice,MoJ HQ,29-Aug-14 ,265000-IT & Telecommunications,RJ999-JPG - International,ATOS IT SERVICES UK LTD,1140952,25.78 ,IT peripherals/individual ordered software and equipment,
Ministry of Justice,MoJ HQ,29-Aug-14 ,265000-IT & Telecommunications,RJ999-JPG - International,ATOS IT SERVICES UK LTD,1140952,25.78 ,IT peripherals/individual ordered software and equipment,
Ministry of Justice,MoJ HQ,29-Aug-14 ,265000-IT & Telecommunications,RJ999-JPG - International,ATOS IT SERVICES UK LTD,1140952,46.00 ,IT peripherals/individual ordered software and equipment,
Ministry of Justice,MoJ HQ,29-Aug-14 ,265000-IT & Telecommunications,RJ999-JPG - International,ATOS IT SERVICES UK LTD,1140952,82.78 ,IT peripherals/individual ordered software and equipment,
Ministry of Justice,MoJ HQ,29-Aug-14 ,265000-IT & Telecommunications,RJ999-JPG - International,ATOS IT SERVICES UK LTD,1140952,82.78 ,IT peripherals/individual ordered software and equipment,
Ministry of Justice,MoJ HQ,01-Aug-14 ,245000-Grants in Aid to NDPBs,RZ500-Arms Length Bodies (JPG),CAFCASS,4807,"9,363,025.00 ",CAFCASS GIA Grant,
Ministry of Justice,MoJ HQ,29-Aug-14 ,265000-IT & Telecommunications,RZ500-Arms Length Bodies (JPG),ATOS IT SERVICES UK LTD,1140952,25.78 ,IT peripherals/individual ordered software and equipment,
Ministry of Justice,MoJ HQ,29-Aug-14 ,265000-IT & Telecommunications,RZ500-Arms Length Bodies (JPG),ATOS IT SERVICES UK LTD,1140952,25.78 ,IT peripherals/individual ordered software and equipment,
Ministry of Justice,MoJ HQ,29-Aug-14 ,265000-IT & Telecommunications,RZ500-Arms Length Bodies (JPG),ATOS IT SERVICES UK LTD,1140952,25.78 ,IT peripherals/individual ordered software and equipment,
Ministry of Justice,MoJ HQ,29-Aug-14 ,265000-IT & Telecommunications,RZ500-Arms Length Bodies (JPG),ATOS IT SERVICES UK LTD,1140952,25.78 ,IT peripherals/individual ordered software and equipment,
Ministry of Justice,MoJ HQ,29-Aug-14 ,265000-IT & Telecommunications,RZ500-Arms Length Bodies (JPG),ATOS IT SERVICES UK LTD,1140952,25.78 ,IT peripherals/individual ordered software and equipment,
Ministry of Justice,MoJ HQ,29-Aug-14 ,265000-IT & Telecommunications,RZ500-Arms Length Bodies (JPG),ATOS IT SERVICES UK LTD,1140952,25.78 ,IT peripherals/individual ordered software and equipment,
Ministry of Justice,MoJ HQ,29-Aug-14 ,265000-IT & Telecommunications,RZ500-Arms Length Bodies (JPG),ATOS IT SERVICES UK LTD,1140952,25.78 ,IT peripherals/individual ordered software and equipment,
Ministry of Justice,MoJ HQ,29-Aug-14 ,265000-IT & Telecommunications,RZ500-Arms Length Bodies (JPG),ATOS IT SERVICES UK LTD,1140952,25.78 ,IT peripherals/individual ordered software and equipment,
Ministry of Justice,MoJ HQ,29-Aug-14 ,265000-IT & Telecommunications,RZ500-Arms Length Bodies (JPG),ATOS IT SERVICES UK LTD,1140952,25.78 ,IT peripherals/individual ordered software and equipment,
Ministry of Justice,MoJ HQ,29-Aug-14 ,265000-IT & Telecommunications,RZ500-Arms Length Bodies (JPG),ATOS IT SERVICES UK LTD,1140952,25.78 ,IT peripherals/individual ordered software and equipment,
Ministry of Justice,MoJ HQ,29-Aug-14 ,265000-IT & Telecommunications,RZ500-Arms Length Bodies (JPG),ATOS IT SERVICES UK LTD,1140952,25.78 ,IT peripherals/individual ordered software and equipment,
Ministry of Justice,MoJ HQ,29-Aug-14 ,265000-IT & Telecommunications,RZ500-Arms Length Bodies (JPG),ATOS IT SERVICES UK LTD,1140952,25.78 ,IT peripherals/individual ordered software and equipment,
Ministry of Justice,MoJ HQ,29-Aug-14 ,265000-IT & Telecommunications,RZ500-Arms Length Bodies (JPG),ATOS IT SERVICES UK LTD,1140952,25.78 ,IT peripherals/individual ordered software and equipment,
Ministry of Justice,MoJ HQ,29-Aug-14 ,265000-IT & Telecommunications,RZ500-Arms Length Bodies (JPG),ATOS IT SERVICES UK LTD,1140952,25.78 ,IT peripherals/individual ordered software and equipment,
Ministry of Justice,MoJ HQ,29-Aug-14 ,265000-IT & Telecommunications,RZ500-Arms Length Bodies (JPG),ATOS IT SERVICES UK LTD,1140952,25.78 ,IT peripherals/individual ordered software and equipment,
Ministry of Justice,MoJ HQ,29-Aug-14 ,265000-IT & Telecommunications,RZ500-Arms Length Bodies (JPG),ATOS IT SERVICES UK LTD,1140952,25.78 ,IT peripherals/individual ordered software and equipment,
Ministry of Justice,MoJ HQ,29-Aug-14 ,265000-IT & Telecommunications,RZ500-Arms Length Bodies (JPG),ATOS IT SERVICES UK LTD,1140952,25.78 ,IT peripherals/individual ordered software and equipment,
Ministry of Justice,MoJ HQ,04-Aug-14 ,264000-Consultancy,LZ600-Transforming Justice,TAMESIDE METROPOLITAN BOROUGH,1139414,"88,176.20 ",Rehabilitation Programme - Transfer of probation liabilities and assets from 35 LGPS Admin Authorities to the Greater Manchester Pension Fund (VAT). ,
Ministry of Justice,MoJ HQ,04-Aug-14 ,264000-Consultancy,LZ600-Transforming Justice,TAMESIDE METROPOLITAN BOROUGH,1139414,"-88,176.20 ",Rehabilitation Programme - Transfer of probation liabilities and assets from 35 LGPS Admin Authorities to the Greater Manchester Pension Fund (VAT). ,
Ministry of Justice,MoJ HQ,04-Aug-14 ,264000-Consultancy,LZ600-Transforming Justice,TAMESIDE METROPOLITAN BOROUGH,1139414,"440,881.00 ",Rehabilitation Programme - Transfer of probation liabilities and assets from 35 LGPS Admin Authorities to the Greater Manchester Pension Fund. ,
Ministry of Justice,MoJ HQ,28-Aug-14 ,264000-Consultancy,LZ600-Transforming Justice,TAMESIDE METROPOLITAN BOROUGH,1140918,"310,442.00 ",Transfer of probation liabilities and assets from 35 LGPS Admin Authorities to the Greater Manchester Pension Fund.,
Ministry of Justice,MoJ HQ,18-Aug-14 ,264000-Consultancy,LZ600-Transforming Justice,PA CONSULTING GROUP,1140218,"138,296.64 ",Rehabilitation Programme - Transition Managers,
Ministry of Justice,MoJ HQ,28-Aug-14 ,264000-Consultancy,LZ600-Transforming Justice,TAMESIDE METROPOLITAN BOROUGH,1140918,"113,006.00 ",Rehabilitation Programme - Transfer of probation liabilities and assets from 35 LGPS Admin Authorities to the Greater Manchester Pension Fund.,
Ministry of Justice,MoJ HQ,18-Aug-14 ,264000-Consultancy,LZ600-Transforming Justice,PA CONSULTING GROUP,1140218,"63,050.00 ",Support on HR issues during the evaluation stage of the competition.,
Ministry of Justice,MoJ HQ,29-Aug-14 ,265000-IT & Telecommunications,LZ600-Transforming Justice,ATOS IT SERVICES UK LTD,1140952,41.41 ,"Provision of IT equipment, applications and service to the rehabilitation programme team",
Ministry of Justice,MoJ HQ,29-Aug-14 ,265000-IT & Telecommunications,LZ600-Transforming Justice,ATOS IT SERVICES UK LTD,1140952,25.78 ,"Provision of IT equipment, applications and service to the rehabilitation programme team",
Ministry of Justice,MoJ HQ,29-Aug-14 ,265000-IT & Telecommunications,LZ600-Transforming Justice,ATOS IT SERVICES UK LTD,1140952,25.78 ,"Provision of IT equipment, applications and service to the rehabilitation programme team",
Ministry of Justice,MoJ HQ,29-Aug-14 ,265000-IT & Telecommunications,LZ600-Transforming Justice,ATOS IT SERVICES UK LTD,1140952,25.78 ,"Provision of IT equipment, applications and service to the rehabilitation programme team",
Ministry of Justice,MoJ HQ,29-Aug-14 ,265000-IT & Telecommunications,LZ600-Transforming Justice,ATOS IT SERVICES UK LTD,1140952,25.78 ,"Provision of IT equipment, applications and service to the rehabilitation programme team",
Ministry of Justice,MoJ HQ,29-Aug-14 ,265000-IT & Telecommunications,LZ600-Transforming Justice,ATOS IT SERVICES UK LTD,1140952,25.78 ,"Provision of IT equipment, applications and service to the rehabilitation programme team",
Ministry of Justice,MoJ HQ,29-Aug-14 ,265000-IT & Telecommunications,LZ600-Transforming Justice,ATOS IT SERVICES UK LTD,1140952,25.78 ,"Provision of IT equipment, applications and service to the rehabilitation programme team",
Ministry of Justice,MoJ HQ,29-Aug-14 ,265000-IT & Telecommunications,LZ600-Transforming Justice,ATOS IT SERVICES UK LTD,1140952,25.78 ,"Provision of IT equipment, applications and service to the rehabilitation programme team",
Ministry of Justice,MoJ HQ,29-Aug-14 ,265000-IT & Telecommunications,LZ600-Transforming Justice,ATOS IT SERVICES UK LTD,1140952,25.78 ,"Provision of IT equipment, applications and service to the rehabilitation programme team",
Ministry of Justice,MoJ HQ,29-Aug-14 ,265000-IT & Telecommunications,LZ600-Transforming Justice,ATOS IT SERVICES UK LTD,1140952,25.78 ,"Provision of IT equipment, applications and service to the rehabilitation programme team",
Ministry of Justice,MoJ HQ,29-Aug-14 ,265000-IT & Telecommunications,LZ600-Transforming Justice,ATOS IT SERVICES UK LTD,1140952,11.62 ,"Provision of IT equipment, applications and service to the rehabilitation programme team",
Ministry of Justice,MoJ HQ,29-Aug-14 ,265000-IT & Telecommunications,LZ600-Transforming Justice,ATOS IT SERVICES UK LTD,1140952,78.26 ,"Provision of IT equipment, applications and service to the rehabilitation programme team",
Ministry of Justice,MoJ HQ,28-Aug-14 ,265000-IT & Telecommunications,LZ600-Transforming Justice,LOCKHEED MARTIN UK LIMITED,1140848,"42,231.08 ",LOCKHEED: Discovery & Initiation for Rehabilitation Programme service support desk changes,
Ministry of Justice,MoJ HQ,26-Aug-14 ,265000-IT & Telecommunications,LZ600-Transforming Justice,CMC PARTNERSHIP (UK) LTD,1140616,"22,800.00 ",Rehabilitation Programme - CMC - ICT sub-programme PMO Managed Service.,
Ministry of Justice,MoJ HQ,26-Aug-14 ,265000-IT & Telecommunications,LZ600-Transforming Justice,CMC PARTNERSHIP (UK) LTD,1140616,"4,560.00 ",Rehabilitation Programme - CMC - ICT sub-programme PMO Managed Service. (VAT),
Ministry of Justice,MoJ HQ,29-Aug-14 ,265000-IT & Telecommunications,QZ600-CPG Other,ATOS IT SERVICES UK LTD,1140952,25.78 ,IT peripherals/individual ordered software and equipment,
Ministry of Justice,MoJ HQ,29-Aug-14 ,265000-IT & Telecommunications,QZ600-CPG Other,ATOS IT SERVICES UK LTD,1140952,25.78 ,IT peripherals/individual ordered software and equipment,
Ministry of Justice,MoJ HQ,29-Aug-14 ,265000-IT & Telecommunications,QZ600-CPG Other,ATOS IT SERVICES UK LTD,1140952,25.78 ,IT peripherals/individual ordered software and equipment,
Ministry of Justice,MoJ HQ,29-Aug-14 ,265000-IT & Telecommunications,QZ600-CPG Other,ATOS IT SERVICES UK LTD,1140952,51.56 ,IT peripherals/individual ordered software and equipment,
Ministry of Justice,MoJ HQ,29-Aug-14 ,265000-IT & Telecommunications,QZ600-CPG Other,ATOS IT SERVICES UK LTD,1140952,25.78 ,IT peripherals/individual ordered software and equipment,
Ministry of Justice,MoJ HQ,29-Aug-14 ,265000-IT & Telecommunications,QZ600-CPG Other,ATOS IT SERVICES UK LTD,1140952,116.08 ,IT peripherals/individual ordered software and equipment,
Ministry of Justice,MoJ HQ,29-Aug-14 ,265000-IT & Telecommunications,QZ600-CPG Other,ATOS IT SERVICES UK LTD,1140952,78.26 ,IT peripherals/individual ordered software and equipment,
Ministry of Justice,MoJ HQ,29-Aug-14 ,265000-IT & Telecommunications,QZ600-CPG Other,ATOS IT SERVICES UK LTD,1140952,"2,145.00 ",IT peripherals/individual ordered software and equipment,
Ministry of Justice,MoJ HQ,29-Aug-14 ,265000-IT & Telecommunications,QZ600-CPG Other,ATOS IT SERVICES UK LTD,1140952,199.78 ,IT peripherals/individual ordered software and equipment,
Ministry of Justice,MoJ HQ,29-Aug-14 ,265000-IT & Telecommunications,QZ600-CPG Other,ATOS IT SERVICES UK LTD,1140952,257.46 ,IT peripherals/individual ordered software and equipment,
Ministry of Justice,MoJ HQ,29-Aug-14 ,265000-IT & Telecommunications,QZ600-CPG Other,ATOS IT SERVICES UK LTD,1140952,"2,145.00 ",IT peripherals/individual ordered software and equipment,
Ministry of Justice,MoJ HQ,29-Aug-14 ,265000-IT & Telecommunications,QZ600-CPG Other,ATOS IT SERVICES UK LTD,1140952,199.78 ,IT peripherals/individual ordered software and equipment,
Ministry of Justice,MoJ HQ,29-Aug-14 ,265000-IT & Telecommunications,QZ600-CPG Other,ATOS IT SERVICES UK LTD,1140952,257.46 ,IT peripherals/individual ordered software and equipment,
Ministry of Justice,MoJ HQ,01-Aug-14 ,245000-Grants in Aid to NDPBs,KY340-Access to Justice Delivery,CCRC (CRIMINAL CASES REVIEW COMMISSION),4808,"550,000.00 ",Monthly Grant in Aid payment to CCRC (August),
Ministry of Justice,MoJ HQ,29-Aug-14 ,265000-IT & Telecommunications,RB999-JPG - CJRD,ATOS IT SERVICES UK LTD,1140952,168.10 ,IT peripherals/individual ordered software and equipment,
Ministry of Justice,MoJ HQ,29-Aug-14 ,265000-IT & Telecommunications,RB999-JPG - CJRD,ATOS IT SERVICES UK LTD,1140952,6.38 ,IT peripherals/individual ordered software and equipment,
Ministry of Justice,MoJ HQ,29-Aug-14 ,265000-IT & Telecommunications,RB999-JPG - CJRD,ATOS IT SERVICES UK LTD,1140952,5.13 ,IT peripherals/individual ordered software and equipment,
Ministry of Justice,MoJ HQ,29-Aug-14 ,265000-IT & Telecommunications,RB999-JPG - CJRD,ATOS IT SERVICES UK LTD,1140952,25.78 ,IT peripherals/individual ordered software and equipment,
Ministry of Justice,MoJ HQ,29-Aug-14 ,265000-IT & Telecommunications,RB999-JPG - CJRD,ATOS IT SERVICES UK LTD,1140952,46.00 ,IT peripherals/individual ordered software and equipment,
Ministry of Justice,MoJ HQ,29-Aug-14 ,265000-IT & Telecommunications,RB999-JPG - CJRD,ATOS IT SERVICES UK LTD,1140952,25.78 ,IT peripherals/individual ordered software and equipment,
Ministry of Justice,MoJ HQ,29-Aug-14 ,265000-IT & Telecommunications,RB999-JPG - CJRD,ATOS IT SERVICES UK LTD,1140952,25.78 ,IT peripherals/individual ordered software and equipment,
Ministry of Justice,MoJ HQ,29-Aug-14 ,265000-IT & Telecommunications,RB999-JPG - CJRD,ATOS IT SERVICES UK LTD,1140952,25.78 ,IT peripherals/individual ordered software and equipment,
Ministry of Justice,MoJ HQ,29-Aug-14 ,265000-IT & Telecommunications,RB999-JPG - CJRD,ATOS IT SERVICES UK LTD,1140952,25.78 ,IT peripherals/individual ordered software and equipment,
Ministry of Justice,MoJ HQ,29-Aug-14 ,265000-IT & Telecommunications,RB999-JPG - CJRD,ATOS IT SERVICES UK LTD,1140952,46.00 ,IT peripherals/individual ordered software and equipment,
Ministry of Justice,MoJ HQ,29-Aug-14 ,265000-IT & Telecommunications,RB999-JPG - CJRD,ATOS IT SERVICES UK LTD,1140952,25.78 ,IT peripherals/individual ordered software and equipment,
Ministry of Justice,MoJ HQ,29-Aug-14 ,265000-IT & Telecommunications,RB999-JPG - CJRD,ATOS IT SERVICES UK LTD,1140952,11.62 ,IT peripherals/individual ordered software and equipment,
Ministry of Justice,MoJ HQ,29-Aug-14 ,265000-IT & Telecommunications,RB999-JPG - CJRD,ATOS IT SERVICES UK LTD,1140952,11.62 ,IT peripherals/individual ordered software and equipment,
Ministry of Justice,MoJ HQ,29-Aug-14 ,265000-IT & Telecommunications,RB999-JPG - CJRD,ATOS IT SERVICES UK LTD,1140952,11.62 ,IT peripherals/individual ordered software and equipment,
Ministry of Justice,MoJ HQ,29-Aug-14 ,265000-IT & Telecommunications,RB999-JPG - CJRD,ATOS IT SERVICES UK LTD,1140952,242.09 ,IT peripherals/individual ordered software and equipment,
Ministry of Justice,MoJ HQ,20-Aug-14 ,246000-Current Grants,RB999-JPG - CJRD,PCC FOR MOPAC#RB31110775,1140308,"2,360,000.00 ",2014/15 Competed Fund Grant Award,
Ministry of Justice,MoJ HQ,20-Aug-14 ,223000-Other Expenditure,RB999-JPG - CJRD,CROWN PROSECUTION SERVICE#RB31110778,1140311,"1,500,000.00 ",Funding of Witness Care Units,
Ministry of Justice,MoJ HQ,08-Aug-14 ,246000-Current Grants,RB999-JPG - CJRD,PCC FOR GREATER MANCHESTER#RB31110766,1139752,"720,481.00 ",2014/15 Competed Fund Grant Award,
Ministry of Justice,MoJ HQ,08-Aug-14 ,246000-Current Grants,RB999-JPG - CJRD,PCC FOR WEST MIDLANDS#RB31110767,1139753,"703,448.28 ",2014/15 Competed Fund Grant Award,
Ministry of Justice,MoJ HQ,20-Aug-14 ,246000-Current Grants,RB999-JPG - CJRD,PCC FOR DEVON & CORNWALL#RB31110773,1140306,"559,269.65 ",2014/15 Competed Fund Grant Award,
Ministry of Justice,MoJ HQ,07-Aug-14 ,246000-Current Grants,RB999-JPG - CJRD,PCC FOR LANCASHIRE#RB31110764,1139646,"545,000.00 ",2014/15 Competed Fund Grant Award,
Ministry of Justice,MoJ HQ,26-Aug-14 ,246000-Current Grants,RB999-JPG - CJRD,POLICE AND CRIME COMMISSIONER FOR SOUTH WALES#RB31,1140692,"500,000.00 ",2014/15 Competed Fund Grant Award,
Ministry of Justice,MoJ HQ,20-Aug-14 ,246000-Current Grants,RB999-JPG - CJRD,PCC FOR SURREY#RB31110774,1140307,"450,109.64 ",2014/15 Competed Fund Grant Award,
Ministry of Justice,MoJ HQ,20-Aug-14 ,246000-Current Grants,RB999-JPG - CJRD,PCC FOR LEICESTERSHIRE#RB31110779,1140312,"398,045.00 ",2014/15 Competed Fund Grant Award,
Ministry of Justice,MoJ HQ,04-Aug-14 ,246000-Current Grants,RB999-JPG - CJRD,PCC FOR WEST MERCIA#RB31110750,1139359,"395,000.00 ",2014/15 Competed Fund Grant Award,
Ministry of Justice,MoJ HQ,04-Aug-14 ,246000-Current Grants,RB999-JPG - CJRD,PCC FOR AVON AND SOMERSET#RB31110746,1139355,"374,717.00 ",2014/15 Competed Fund Grant Award,
Ministry of Justice,MoJ HQ,04-Aug-14 ,246000-Current Grants,RB999-JPG - CJRD,PCC FOR THAMES VALLEY#RB31110751,1139360,"373,000.00 ",2014/15 Competed Fund Grant Award,
Ministry of Justice,MoJ HQ,05-Aug-14 ,246000-Current Grants,RB999-JPG - CJRD,PCC FOR CAMBRIDGESHIRE#RB31110760,1139452,"345,000.00 ",2014/15 Competed Fund Grant Award,
Ministry of Justice,MoJ HQ,04-Aug-14 ,246000-Current Grants,RB999-JPG - CJRD,PCC FOR NORFOLK#RB31110755,1139364,"315,282.75 ",2014/15 Competed Fund Grant Award,
Ministry of Justice,MoJ HQ,27-Aug-14 ,246000-Current Grants,RB999-JPG - CJRD,PCC FOR NORTHUMBRIA#RB31110772,1140752,"306,405.52 ",2014/15 Competed Fund Grant Award,
Ministry of Justice,MoJ HQ,04-Aug-14 ,246000-Current Grants,RB999-JPG - CJRD,PCC FOR NORTH YORKSHIRE#RB31110759,1139368,"303,200.00 ",2014/15 Competed Fund Grant Award,
Ministry of Justice,MoJ HQ,11-Aug-14 ,246000-Current Grants,RB999-JPG - CJRD,DPCC FUND ACCOUNT#RB31110770,1139832,"299,000.00 ",2014/15 Competed Fund Grant Award,
Ministry of Justice,MoJ HQ,04-Aug-14 ,246000-Current Grants,RB999-JPG - CJRD,PCC FOR ESSEX#RB31110754,1139363,"276,671.00 ",2014/15 Competed Fund Grant Award,
Ministry of Justice,MoJ HQ,04-Aug-14 ,246000-Current Grants,RB999-JPG - CJRD,PCC FOR NORTH WALES#RB31110756,1139365,"258,450.80 ",2014/15 Competed Fund Grant Award,
Ministry of Justice,MoJ HQ,04-Aug-14 ,246000-Current Grants,RB999-JPG - CJRD,PCC FOR SUSSEX#RB31110753,1139362,"250,000.00 ",2014/15 Competed Fund Grant Award,
Ministry of Justice,MoJ HQ,11-Aug-14 ,246000-Current Grants,RB999-JPG - CJRD,OFFICE OF PCC FOR SUFFOLK#RB31110769,1139831,"244,842.00 ",2014/15 Competed Fund Grant Award,
Ministry of Justice,MoJ HQ,04-Aug-14 ,246000-Current Grants,RB999-JPG - CJRD,PCC FOR CLEVELAND#RB31110748,1139357,"236,900.00 ",2014/15 Competed Fund Grant Award,
Ministry of Justice,MoJ HQ,07-Aug-14 ,246000-Current Grants,RB999-JPG - CJRD,PCC FOR NOTTINGHAMSHIRE#RB31110762,25459,"228,175.00 ",2014/15 Competed Fund Grant Award,
Ministry of Justice,MoJ HQ,05-Aug-14 ,246000-Current Grants,RB999-JPG - CJRD,PCC FOR HERTFORDSHIRE#RB31110761,1139453,"227,500.00 ",2014/15 Competed Fund Grant Award,
Ministry of Justice,MoJ HQ,20-Aug-14 ,246000-Current Grants,RB999-JPG - CJRD,PCC FOR STAFFORDSHIRE#RB31110781,1140314,"220,000.00 ",2014/15 Competed Fund Grant Award,
Ministry of Justice,MoJ HQ,04-Aug-14 ,246000-Current Grants,RB999-JPG - CJRD,PCC FOR WEST YORKSHIRE#RB31110747,1139356,"200,000.00 ",2014/15 Competed Fund Grant Award,
Ministry of Justice,MoJ HQ,22-Aug-14 ,246000-Current Grants,RB999-JPG - CJRD,PCC FOR KENT#RB31110786,1140585,"149,861.14 ",2014/15 Competed Fund Grant Award,
Ministry of Justice,MoJ HQ,20-Aug-14 ,246000-Current Grants,RB999-JPG - CJRD,PCC FOR DURHAM#RB31110780,1140313,"142,814.00 ",2014/15 Competed Fund Grant Award,
Ministry of Justice,MoJ HQ,20-Aug-14 ,246000-Current Grants,RB999-JPG - CJRD,PCC FOR HUMBERSIDE#RB31110771,1140305,"137,053.00 ",2014/15 Competed Fund Grant Award,
Ministry of Justice,MoJ HQ,20-Aug-14 ,246000-Current Grants,RB999-JPG - CJRD,PCC FOR DYFED POWYS#RB31110776,1140309,"121,200.00 ",2014/15 Competed Fund Grant Award,
Ministry of Justice,MoJ HQ,04-Aug-14 ,246000-Current Grants,RB999-JPG - CJRD,PCC FOR WARWICKSHIRE#RB31110749,1139358,"107,373.00 ",2014/15 Competed Fund Grant Award,
Ministry of Justice,MoJ HQ,04-Aug-14 ,246000-Current Grants,RB999-JPG - CJRD,PCC FOR DERBYSHIRE#RB31110758,1139367,"99,500.00 ",2014/15 Competed Fund Grant Award,
Ministry of Justice,MoJ HQ,04-Aug-14 ,246000-Current Grants,RB999-JPG - CJRD,PCC FOR WILTSHIRE#RB31110757,1139366,"73,806.00 ",2014/15 Competed Fund Grant Award,
Ministry of Justice,MoJ HQ,26-Aug-14 ,246000-Current Grants,RB999-JPG - CJRD,PCC FOR DORSET#RB31110791,1140693,"65,903.00 ",2014/15 Competed Fund Grant Award,
Ministry of Justice,MoJ HQ,21-Aug-14 ,223000-Other Expenditure,RB999-JPG - CJRD,THE NOTTINGHAMSHIRE OFFICE OF THE POLICE AND CRIME COMMISSIONER,1140549,"60,361.00 ",Funding of UK Protected Person Service 2013/14,
Ministry of Justice,MoJ HQ,04-Aug-14 ,246000-Current Grants,RB999-JPG - CJRD,PCC FOR CHESHIRE#RB31110752,1139361,"57,677.00 ",2014/15 Competed Fund Grant Award,
Ministry of Justice,MoJ HQ,22-Aug-14 ,246000-Current Grants,RB999-JPG - CJRD,PCC FOR CHESHIRE#RB31110787,1140586,"57,677.00 ",2014/15 Competed Fund Grant Award,
Ministry of Justice,MoJ HQ,07-Aug-14 ,246000-Current Grants,RB999-JPG - CJRD,PCC FOR LINCOLNSHIRE#RB31110765,1139647,"30,000.00 ",2014/15 Competed Fund Grant Award,
Ministry of Justice,MoJ HQ,22-Aug-14 ,246000-Current Grants,RB999-JPG - CJRD,PCC FOR CHESHIRE#RB31110788,1140587,"25,000.00 ",2014/15 Competed Fund Grant - Joint Award with Merseyside,
Ministry of Justice,MoJ HQ,07-Aug-14 ,264000-Consultancy,RC999-Criminal Justice Group - OMS,KPMG,1139589,"105,900.00 ",Financial Services to support the the TYC programme. ,
Ministry of Justice,MoJ HQ,07-Aug-14 ,264000-Consultancy,RC999-Criminal Justice Group - OMS,KPMG,1139589,"21,180.00 ",Financial Services to support the the TYC programme (VAT),
Ministry of Justice,MoJ HQ,07-Aug-14 ,264000-Consultancy,RC999-Criminal Justice Group - OMS,KPMG,1139589,"50,044.00 ",Financial Services to support the the TYC programme. ,
Ministry of Justice,MoJ HQ,07-Aug-14 ,264000-Consultancy,RC999-Criminal Justice Group - OMS,KPMG,1139589,"10,008.80 ",Financial Services to support the the TYC programme (VAT). ,
Ministry of Justice,MoJ HQ,21-Aug-14 ,264000-Consultancy,RC999-Criminal Justice Group - OMS,PINSENT MASONS LLP,1140514,"46,410.00 ",Legal Consultancy for TYC programme,
Ministry of Justice,MoJ HQ,21-Aug-14 ,264000-Consultancy,RC999-Criminal Justice Group - OMS,PINSENT MASONS LLP,1140514,"45,567.00 ",Legal Consultancy for TYC programme,
Ministry of Justice,MoJ HQ,07-Aug-14 ,264000-Consultancy,RC999-Criminal Justice Group - OMS,KPMG,1139589,"38,184.00 ",Financial Services to support the the TYC programme.,
Ministry of Justice,MoJ HQ,07-Aug-14 ,264000-Consultancy,RC999-Criminal Justice Group - OMS,KPMG,1139589,"7,636.80 ",Financial Services to support the the TYC programme (VAT).,
Ministry of Justice,MoJ HQ,21-Aug-14 ,264000-Consultancy,RC999-Criminal Justice Group - OMS,KPMG,1140463,"25,941.00 ",Financial Services to support the the TYC programme. ,
Ministry of Justice,MoJ HQ,21-Aug-14 ,264000-Consultancy,RC999-Criminal Justice Group - OMS,KPMG,1140463,"5,188.20 ",Financial Services to support the the TYC programme (VAT). ,
Ministry of Justice,MoJ HQ,21-Aug-14 ,264000-Consultancy,RC999-Criminal Justice Group - OMS,KPMG,1140463,"24,854.00 ",Financial Services to support the the TYC programme. ,
Ministry of Justice,MoJ HQ,21-Aug-14 ,264000-Consultancy,RC999-Criminal Justice Group - OMS,KPMG,1140463,"4,970.80 ",Financial Services to support the the TYC programme (VAT). ,
Ministry of Justice,MoJ HQ,11-Aug-14 ,263000-Other Contracted Out Services,RC999-Criminal Justice Group - OMS,ECD (ONLEY) LTD,1139791,"1,052,953.44 ",Secure training Centre for young offenders run by Rainsbrook,
Ministry of Justice,MoJ HQ,11-Aug-14 ,263000-Other Contracted Out Services,RC999-Criminal Justice Group - OMS,ECD (COOKHAM WOOD) LTD,1139790,"1,017,554.90 ",Secure training Centre for young offenders run by Medway,
Ministry of Justice,MoJ HQ,07-Aug-14 ,263000-Other Contracted Out Services,RC999-Criminal Justice Group - OMS,MEDOMSLEY TRAINING SERVICES LTD,1139616,"708,776.56 ",Secure training Centre for young offenders run by Hassockfield,
Ministry of Justice,MoJ HQ,05-Aug-14 ,245000-Grants in Aid to NDPBs,KY340-Access to Justice Delivery,THE PAROLE BOARD#KY14820021,4820,"1,100,000.00 ",Monthly Grant in Aid payment to Parole Board (August) ,
Ministry of Justice,MoJ HQ,29-Aug-14 ,265000-IT & Telecommunications,RC999-Criminal Justice Group - OMS,ATOS IT SERVICES UK LTD,1140952,77.34 ,IT peripherals/individual ordered software and equipment,
Ministry of Justice,MoJ HQ,01-Aug-14 ,245000-Grants in Aid to NDPBs,RC999-Criminal Justice Group - OMS,YOUTH JUSTICE BOARD FOR ENGLAND & WALES,4811,"20,000,000.00 ",Monthly Grant in Aid payment to YJB (August) ,
Ministry of Justice,MoJ HQ,29-Aug-14 ,265000-IT & Telecommunications,"RD999-CJG - DGs Office, BDSU, Inspectorates & Ombudsman",ATOS IT SERVICES UK LTD,1140952,51.52 ,IT peripherals/individual ordered software and equipment,
Ministry of Justice,MoJ HQ,29-Aug-14 ,265000-IT & Telecommunications,"RD999-CJG - DGs Office, BDSU, Inspectorates & Ombudsman",ATOS IT SERVICES UK LTD,1140952,69.75 ,IT peripherals/individual ordered software and equipment,
Ministry of Justice,MoJ HQ,29-Aug-14 ,265000-IT & Telecommunications,"RD999-CJG - DGs Office, BDSU, Inspectorates & Ombudsman",ATOS IT SERVICES UK LTD,1140952,282.62 ,IT peripherals/individual ordered software and equipment,
Ministry of Justice,MoJ HQ,29-Aug-14 ,265000-IT & Telecommunications,"RD999-CJG - DGs Office, BDSU, Inspectorates & Ombudsman",ATOS IT SERVICES UK LTD,1140952,51.52 ,IT peripherals/individual ordered software and equipment,
Ministry of Justice,MoJ HQ,29-Aug-14 ,265000-IT & Telecommunications,"RD999-CJG - DGs Office, BDSU, Inspectorates & Ombudsman",ATOS IT SERVICES UK LTD,1140952,66.86 ,IT peripherals/individual ordered software and equipment,
Ministry of Justice,MoJ HQ,29-Aug-14 ,265000-IT & Telecommunications,"RD999-CJG - DGs Office, BDSU, Inspectorates & Ombudsman",ATOS IT SERVICES UK LTD,1140952,219.64 ,IT peripherals/individual ordered software and equipment,
Ministry of Justice,MoJ HQ,29-Aug-14 ,265000-IT & Telecommunications,LZ600-Transforming Justice,ATOS IT SERVICES UK LTD,1140952,25.78 ,IT peripherals/individual ordered software and equipment,
Ministry of Justice,MoJ HQ,29-Aug-14 ,265000-IT & Telecommunications,LZ600-Transforming Justice,ATOS IT SERVICES UK LTD,1140952,11.62 ,IT peripherals/individual ordered software and equipment,
Ministry of Justice,MoJ HQ,29-Aug-14 ,265000-IT & Telecommunications,LZ600-Transforming Justice,ATOS IT SERVICES UK LTD,1140952,11.62 ,IT peripherals/individual ordered software and equipment,
Ministry of Justice,MoJ HQ,29-Aug-14 ,265000-IT & Telecommunications,MA100-Digital Services Division,ATOS IT SERVICES UK LTD,1140952,847.86 ,IT peripherals/individual ordered software and equipment,
Ministry of Justice,MoJ HQ,29-Aug-14 ,265000-IT & Telecommunications,MA100-Digital Services Division,ATOS IT SERVICES UK LTD,1140952,25.78 ,IT peripherals/individual ordered software and equipment,
Ministry of Justice,MoJ HQ,21-Aug-14 ,265000-IT & Telecommunications,MA100-Digital Services Division,AUTOMATION LOGIC LTD,1140337,"25,092.24 ",IT support for cloud/web based environment,
Ministry of Justice,MoJ HQ,21-Aug-14 ,265000-IT & Telecommunications,MA100-Digital Services Division,AUTOMATION LOGIC LTD,1140337,"5,018.45 ",IT support for cloud/web based environment,
Ministry of Justice,MoJ HQ,19-Aug-14 ,221000-Property Rent and Rates,NZ406-Strategic Estates Feeder,EDUCATION FUNDING AGENCY#AJ10100630,1140294,"1,912,678.08 ",Steel House Rent for 2014/15 paid by the MoJ on behalf of Free Schools - Department of Education. ,
Ministry of Justice,MoJ HQ,14-Aug-14 ,222001-Maintenance,NZ406-Strategic Estates Feeder,M J FERGUSON LTD,1140009,24.56 ,Steel House: reactive maintenance costs for 2013-14,
Ministry of Justice,MoJ HQ,14-Aug-14 ,222001-Maintenance,NZ406-Strategic Estates Feeder,M J FERGUSON LTD,1140009,"2,339.13 ",Clive House: reactive maintenance costs for 2013-14.,
Ministry of Justice,MoJ HQ,26-Aug-14 ,221000-Property Rent and Rates,NZ406-Strategic Estates Feeder,MITSUBISHI ESTATE LONDON LTD,1140683,"1,030,311.95 ",Clive House Rent for the period 29/09/14 - 24/12/14.  ,
Ministry of Justice,MoJ HQ,11-Aug-14 ,222003-CIS Labour TFM Estates,NZ406-Strategic Estates Feeder,AMEY COMMUNITY LTD,1139760,51.46 ,HQ TFM Contract - Soft Variable Services - Management,
Ministry of Justice,MoJ HQ,11-Aug-14 ,222003-CIS Labour TFM Estates,NZ406-Strategic Estates Feeder,AMEY COMMUNITY LTD,1139760,"132,689.96 ",HQ TFM Contract - Hard Variable Services - M&E Repair & Maintenance,
Ministry of Justice,MoJ HQ,11-Aug-14 ,222003-CIS Labour TFM Estates,NZ406-Strategic Estates Feeder,AMEY COMMUNITY LTD,1139760,"11,605.85 ",HQ TFM Contract - Hard Variable Services - Internal Repair & Maintenance,
Ministry of Justice,MoJ HQ,11-Aug-14 ,222003-CIS Labour TFM Estates,NZ406-Strategic Estates Feeder,AMEY COMMUNITY LTD,1139760,"3,639.22 ",HQ TFM Contract - Soft Variable Services - M&E Repair & Maintenance,
Ministry of Justice,MoJ HQ,11-Aug-14 ,222003-CIS Labour TFM Estates,NZ406-Strategic Estates Feeder,AMEY COMMUNITY LTD,1139760,"38,203.80 ",HQ TFM Contract - Hard Variable Services - External & Structural Repair & Maintenance,
Ministry of Justice,MoJ HQ,11-Aug-14 ,222003-CIS Labour TFM Estates,NZ406-Strategic Estates Feeder,AMEY COMMUNITY LTD,1139760,"7,640.76 ",HQ TFM Contract - Hard Variable Services - External & Structural Repair & Maintenance,
Ministry of Justice,MoJ HQ,11-Aug-14 ,222003-CIS Labour TFM Estates,NZ406-Strategic Estates Feeder,AMEY COMMUNITY LTD,1139760,105.76 ,HQ TFM Contract - Hard Variable Services - Grounds Maintenance,
Ministry of Justice,MoJ HQ,07-Aug-14 ,222003-CIS Labour TFM Estates,NZ406-Strategic Estates Feeder,AMEY COMMUNITY LTD,1139472,316.24 ,HQ TFM Contract - Soft Fixed Services - Catering; Vending,
Ministry of Justice,MoJ HQ,07-Aug-14 ,222003-CIS Labour TFM Estates,NZ406-Strategic Estates Feeder,AMEY COMMUNITY LTD,1139472,"64,258.12 ",HQ TFM Contract - Soft Fixed Services - Cleaning,
Ministry of Justice,MoJ HQ,07-Aug-14 ,222003-CIS Labour TFM Estates,NZ406-Strategic Estates Feeder,AMEY COMMUNITY LTD,1139472,"5,248.30 ",HQ TFM Contract - Soft Fixed Services - Waste Disposal,
Ministry of Justice,MoJ HQ,07-Aug-14 ,222003-CIS Labour TFM Estates,NZ406-Strategic Estates Feeder,AMEY COMMUNITY LTD,1139472,"32,430.65 ",HQ TFM Contract - Hard Fixed Services - Management,
Ministry of Justice,MoJ HQ,07-Aug-14 ,222003-CIS Labour TFM Estates,NZ406-Strategic Estates Feeder,AMEY COMMUNITY LTD,1139472,"7,465.17 ",HQ TFM Contract - Soft Fixed Services - Management,
Ministry of Justice,MoJ HQ,07-Aug-14 ,222003-CIS Labour TFM Estates,NZ406-Strategic Estates Feeder,AMEY COMMUNITY LTD,1139472,"47,612.04 ",HQ TFM Contract - Hard Fixed Services - M&E Repair & Maintenance,
Ministry of Justice,MoJ HQ,07-Aug-14 ,222003-CIS Labour TFM Estates,NZ406-Strategic Estates Feeder,AMEY COMMUNITY LTD,1139472,"12,866.99 ",HQ TFM Contract - Hard Fixed Services - Internal Repair & Maintenance,
Ministry of Justice,MoJ HQ,07-Aug-14 ,222003-CIS Labour TFM Estates,NZ406-Strategic Estates Feeder,AMEY COMMUNITY LTD,1139472,208.67 ,HQ TFM Contract - Hard Fixed Services - Grounds Maintenance,
Ministry of Justice,MoJ HQ,07-Aug-14 ,222003-CIS Labour TFM Estates,NZ406-Strategic Estates Feeder,AMEY COMMUNITY LTD,1139472,385.88 ,HQ TFM Contract - Soft Fixed Services - Pest & Vermin Control - Building Operation,
Ministry of Justice,MoJ HQ,18-Aug-14 ,222003-CIS Labour TFM Estates,NZ406-Strategic Estates Feeder,MITIE JUSTICE LTD,1140205,"119,973.88 ",Fixed Soft Services for the MOJ HQ Apr14 - Mar15.                  3.1 Security,
Ministry of Justice,MoJ HQ,18-Aug-14 ,222003-CIS Labour TFM Estates,NZ406-Strategic Estates Feeder,MITIE JUSTICE LTD,1140205,"9,751.65 ",Fixed Soft Services for the MOJ HQ Apr14 - Mar15.                  3.9 Management,
Ministry of Justice,MoJ HQ,18-Aug-14 ,222003-CIS Labour TFM Estates,NZ406-Strategic Estates Feeder,MITIE JUSTICE LTD,1140205,"62,602.05 ",Fixed Soft Services for the MOJ HQ Apr14 - Mar15.                  3.1 Security,
Ministry of Justice,MoJ HQ,21-Aug-14 ,223001-Printing Postage and Office expenditure,NZ406-Strategic Estates Feeder,LIBERATA UK LTD,1140468,"74,996.49 ",Printroom costs for Design/Print/Reprographic services (Non VAT Recoverable),
Ministry of Justice,MoJ HQ,04-Aug-14 ,234000-Profit/Loss on Disposal of Fixed Assets,NZ406-Strategic Estates Feeder,JONES LANG LASALLE LTD,1139318,"50,950.00 ",Disposal fee charged in relation to the sale of Ashley House,
Ministry of Justice,MoJ HQ,04-Aug-14 ,234000-Profit/Loss on Disposal of Fixed Assets,NZ406-Strategic Estates Feeder,JONES LANG LASALLE LTD,1139318,"10,190.00 ",Disposal fee charged in relation to the sale of Ashley House,
Ministry of Justice,MoJ HQ,08-Aug-14 ,222002-Other Property Costs,NZ406-Strategic Estates Feeder,HOME OFFICE,4830,"51,002.40 ","Grenadier House FM fixed monthly fee, 2014-15.",
Ministry of Justice,MoJ HQ,08-Aug-14 ,222002-Other Property Costs,NZ406-Strategic Estates Feeder,HOME OFFICE,4830,"10,200.48 ","Grenadier House FM fixed monthly fee, 2014-15.",
Ministry of Justice,MoJ HQ,26-Aug-14 ,221000-Property Rent and Rates,NZ406-Strategic Estates Feeder,KNIGHT FRANK LLP,1140666,7.00 ,Peat House Rent for the period 24/06/14 - 28/09/14.,
Ministry of Justice,MoJ HQ,26-Aug-14 ,221000-Property Rent and Rates,NZ406-Strategic Estates Feeder,KNIGHT FRANK LLP,1140666,"6,450.00 ",Peat House Rent for the period 24/06/14 - 28/09/14.,
Ministry of Justice,MoJ HQ,26-Aug-14 ,222002-Other Property Costs,NZ406-Strategic Estates Feeder,KNIGHT FRANK LLP,1140666,"15,761.00 ",Peat House Service Charge for the period 24/06/14 - 28/09/14.,
Ministry of Justice,MoJ HQ,26-Aug-14 ,222002-Other Property Costs,NZ406-Strategic Estates Feeder,KNIGHT FRANK LLP,1140666,"3,152.20 ",Peat House Service Charge for the period 24/06/14 - 28/09/14.,
Ministry of Justice,MoJ HQ,21-Aug-14 ,262000-SCA Costs,NZ406-Strategic Estates Feeder,LAND SECURITIES PROPERTIES LTD,1140464,"3,887,821.75 ",102 Petty France Rent for the period 01/07/14 - 30/09/14,
Ministry of Justice,MoJ HQ,11-Aug-14 ,261000-Fuel and Utilities,NZ406-Strategic Estates Feeder,EDF ENERGY LTD,1139792,"81,792.59 ",102 Petty France Electricity supply,
Ministry of Justice,MoJ HQ,11-Aug-14 ,261000-Fuel and Utilities,NZ406-Strategic Estates Feeder,EDF ENERGY LTD,1139792,61.33 ,102 Petty France Electricity supply,
Ministry of Justice,MoJ HQ,11-Aug-14 ,261000-Fuel and Utilities,NZ406-Strategic Estates Feeder,EDF ENERGY LTD,1139792,"16,358.52 ",103 Petty France Electricity supply,
Ministry of Justice,MoJ HQ,28-Aug-14 ,261000-Fuel and Utilities,NZ406-Strategic Estates Feeder,EDF ENERGY LTD,1140812,"67,839.54 ",102 Petty France Electricity supply,
Ministry of Justice,MoJ HQ,28-Aug-14 ,261000-Fuel and Utilities,NZ406-Strategic Estates Feeder,EDF ENERGY LTD,1140812,223.04 ,102 Petty France Electricity supply,
Ministry of Justice,MoJ HQ,28-Aug-14 ,261000-Fuel and Utilities,NZ406-Strategic Estates Feeder,EDF ENERGY LTD,1140812,"13,567.91 ",103 Petty France Electricity supply,
Ministry of Justice,MoJ HQ,28-Aug-14 ,261000-Fuel and Utilities,NZ406-Strategic Estates Feeder,EDF ENERGY LTD,1140812,"61,978.68 ",104 Petty France Electricity supply,
Ministry of Justice,MoJ HQ,28-Aug-14 ,261000-Fuel and Utilities,NZ406-Strategic Estates Feeder,EDF ENERGY LTD,1140812,"12,395.74 ",105 Petty France Electricity supply,
Ministry of Justice,MoJ HQ,28-Aug-14 ,261000-Fuel and Utilities,NZ406-Strategic Estates Feeder,EDF ENERGY LTD,1140812,"60,487.98 ",106 Petty France Electricity supply,
Ministry of Justice,MoJ HQ,28-Aug-14 ,261000-Fuel and Utilities,NZ406-Strategic Estates Feeder,EDF ENERGY LTD,1140812,"12,097.60 ",107 Petty France Electricity supply,
Ministry of Justice,MoJ HQ,28-Aug-14 ,261000-Fuel and Utilities,NZ406-Strategic Estates Feeder,EDF ENERGY LTD,1140812,20.15 ,107 Petty France Electricity supply,
Ministry of Justice,MoJ HQ,14-Aug-14 ,222001-Maintenance,NZ406-Strategic Estates Feeder,M J FERGUSON LTD,1140009,"29,409.85 ",107 Petty France: reactive maintenance costs for 2013-14. BEC = NE130.,
Ministry of Justice,MoJ HQ,29-Aug-14 ,265000-IT & Telecommunications,NZ406-Strategic Estates Feeder,ATOS IT SERVICES UK LTD,1140952,164.00 ,IT peripherals/individual ordered software and equipment,
Ministry of Justice,MoJ HQ,29-Aug-14 ,265000-IT & Telecommunications,NZ406-Strategic Estates Feeder,ATOS IT SERVICES UK LTD,1140952,46.00 ,IT peripherals/individual ordered software and equipment,
Ministry of Justice,MoJ HQ,29-Aug-14 ,265000-IT & Telecommunications,NZ406-Strategic Estates Feeder,ATOS IT SERVICES UK LTD,1140952,11.17 ,IT peripherals/individual ordered software and equipment,
Ministry of Justice,MoJ HQ,29-Aug-14 ,265000-IT & Telecommunications,NZ406-Strategic Estates Feeder,ATOS IT SERVICES UK LTD,1140952,46.00 ,IT peripherals/individual ordered software and equipment,
Ministry of Justice,MoJ HQ,29-Aug-14 ,265000-IT & Telecommunications,NZ406-Strategic Estates Feeder,ATOS IT SERVICES UK LTD,1140952,11.62 ,IT peripherals/individual ordered software and equipment,
Ministry of Justice,MoJ HQ,07-Aug-14 ,223001-Printing Postage and Office expenditure,NZ406-Strategic Estates Feeder,LIBERATA UK LTD,1139600,"35,302.34 ",Printroom costs,
Ministry of Justice,MoJ HQ,07-Aug-14 ,223001-Printing Postage and Office expenditure,NZ406-Strategic Estates Feeder,LIBERATA UK LTD,1139600,"7,060.47 ",Printroom costs,
Ministry of Justice,MoJ HQ,29-Aug-14 ,265000-IT & Telecommunications,NZ406-Strategic Estates Feeder,ATOS IT SERVICES UK LTD,1140952,43.43 ,IT peripherals/individual ordered software and equipment,
Ministry of Justice,MoJ HQ,29-Aug-14 ,265000-IT & Telecommunications,NZ406-Strategic Estates Feeder,ATOS IT SERVICES UK LTD,1140952,55.80 ,IT peripherals/individual ordered software and equipment,
Ministry of Justice,MoJ HQ,29-Aug-14 ,265000-IT & Telecommunications,NZ406-Strategic Estates Feeder,ATOS IT SERVICES UK LTD,1140952,31.90 ,IT peripherals/individual ordered software and equipment,
Ministry of Justice,MoJ HQ,14-Aug-14 ,262000-SCA Costs,NX900-MOJ Shared Services,LIBERATA UK LTD,1140002,"1,261,585.35 ",Finance Services Delivery charges for MOJ via Liberata,
Ministry of Justice,MoJ HQ,29-Aug-14 ,265000-IT & Telecommunications,NX900-MOJ Shared Services,ATOS IT SERVICES UK LTD,1140952,11.17 ,IT peripherals/individual ordered software and equipment,
Ministry of Justice,MoJ HQ,07-Aug-14 ,265000-IT & Telecommunications,NX900-MOJ Shared Services,ORACLE CORPORATION UK LTD,1139651,-0.01 ,Oracle license extension fees &  Oracle license support costs for period from 20th May 2014,
Ministry of Justice,MoJ HQ,07-Aug-14 ,265000-IT & Telecommunications,NX900-MOJ Shared Services,ORACLE CORPORATION UK LTD,1139651,"3,716,902.12 ",Oracle license extension fees &  Oracle license support costs for period from 20th May 2014,
Ministry of Justice,MoJ HQ,07-Aug-14 ,265000-IT & Telecommunications,NX900-MOJ Shared Services,ORACLE CORPORATION UK LTD,1139651,"743,380.42 ",Oracle license extension fees &  Oracle license support costs for period from 20th May 2014,
Ministry of Justice,MoJ HQ,21-Aug-14 ,512000-Intangible GBV - Additions,NX900-MOJ Shared Services,LIBERATA UK LTD,1140469,"135,117.39 ",Activity by Librata on the Project to Merge the current Aramis and Phoenix Oracle platforms during August 2014.,
Ministry of Justice,MoJ HQ,04-Aug-14 ,264000-Consultancy,NX900-MOJ Shared Services,KPMG,1139328,"76,500.00 ",Consultancy advice delivered to the Shared service evolve programme for the transfer to the provision of shared services to a outside service provider,
Ministry of Justice,MoJ HQ,07-Aug-14 ,264000-Consultancy,NX900-MOJ Shared Services,BOND DICKINSON LLP,1139491,"58,450.92 ",Legal advice delivered to the Shared service evolve programme for the transfer to the provision of shared services to a outside service provider,
Ministry of Justice,MoJ HQ,07-Aug-14 ,264000-Consultancy,NX900-MOJ Shared Services,BOND DICKINSON LLP,1139491,"11,690.18 ",Legal advice delivered to the Shared service evolve programme for the transfer to the provision of shared services to a outside service provider,
Ministry of Justice,MoJ HQ,29-Aug-14 ,265000-IT & Telecommunications,NX900-MOJ Shared Services,ATOS IT SERVICES UK LTD,1140952,8.51 ,IT peripherals/individual ordered software and equipment,
Ministry of Justice,MoJ HQ,29-Aug-14 ,265000-IT & Telecommunications,NX900-MOJ Shared Services,ATOS IT SERVICES UK LTD,1140952,164.00 ,IT peripherals/individual ordered software and equipment,
Ministry of Justice,MoJ HQ,29-Aug-14 ,265000-IT & Telecommunications,NX900-MOJ Shared Services,ATOS IT SERVICES UK LTD,1140952,184.00 ,IT peripherals/individual ordered software and equipment,
Ministry of Justice,MoJ HQ,07-Aug-14 ,262000-SCA Costs,NX900-MOJ Shared Services,LIBERATA UK LTD,1139600,"253,879.05 ",Monthly Payroll Charges for MOJ Payroll Delivery (Northgate),
Ministry of Justice,MoJ HQ,13-Aug-14 ,265000-IT & Telecommunications,NX900-MOJ Shared Services,HOME OFFICE,4848,"21,512.88 ",Delivery of testing services for the Shared Services S&E Project,
Ministry of Justice,MoJ HQ,29-Aug-14 ,265000-IT & Telecommunications,OZ501-HRD Feeder,ATOS IT SERVICES UK LTD,1140952,78.26 ,IT peripherals/individual ordered software and equipment,
Ministry of Justice,MoJ HQ,29-Aug-14 ,265000-IT & Telecommunications,OZ501-HRD Feeder,ATOS IT SERVICES UK LTD,1140952,66.86 ,IT peripherals/individual ordered software and equipment,
Ministry of Justice,MoJ HQ,07-Aug-14 ,224000-Staff travel and other,OZ501-HRD Feeder,XEXEC LTD,1139749,"-1,430.40 ",Departmental wide Reward & Recognition scheme,
Ministry of Justice,MoJ HQ,07-Aug-14 ,224000-Staff travel and other,OZ501-HRD Feeder,XEXEC LTD,1139749,"11,202.58 ",Departmental wide Reward & Recognition scheme,
Ministry of Justice,MoJ HQ,07-Aug-14 ,224000-Staff travel and other,OZ501-HRD Feeder,XEXEC LTD,1139749,"-11,202.58 ",Departmental wide Reward & Recognition scheme,
Ministry of Justice,MoJ HQ,07-Aug-14 ,224000-Staff travel and other,OZ501-HRD Feeder,XEXEC LTD,1139749,"34,767.92 ",Departmental wide Reward & Recognition scheme,
Ministry of Justice,MoJ HQ,07-Aug-14 ,224000-Staff travel and other,OZ501-HRD Feeder,XEXEC LTD,1139749,"21,245.00 ",Departmental wide Reward & Recognition scheme,
Ministry of Justice,MoJ HQ,07-Aug-14 ,224000-Staff travel and other,OZ501-HRD Feeder,XEXEC LTD,1139749,"6,953.58 ",Departmental wide Reward & Recognition scheme,
Ministry of Justice,MoJ HQ,29-Aug-14 ,265000-IT & Telecommunications,OZ501-HRD Feeder,ATOS IT SERVICES UK LTD,1140952,171.60 ,IT peripherals/individual ordered software and equipment,
Ministry of Justice,MoJ HQ,29-Aug-14 ,265000-IT & Telecommunications,OZ501-HRD Feeder,ATOS IT SERVICES UK LTD,1140952,46.00 ,IT peripherals/individual ordered software and equipment,
Ministry of Justice,MoJ HQ,29-Aug-14 ,265000-IT & Telecommunications,OZ501-HRD Feeder,ATOS IT SERVICES UK LTD,1140952,25.78 ,IT peripherals/individual ordered software and equipment,
Ministry of Justice,MoJ HQ,29-Aug-14 ,265000-IT & Telecommunications,OZ501-HRD Feeder,ATOS IT SERVICES UK LTD,1140952,46.00 ,IT peripherals/individual ordered software and equipment,
Ministry of Justice,MoJ HQ,29-Aug-14 ,265000-IT & Telecommunications,OZ501-HRD Feeder,ATOS IT SERVICES UK LTD,1140952,25.78 ,IT peripherals/individual ordered software and equipment,
Ministry of Justice,MoJ HQ,29-Aug-14 ,265000-IT & Telecommunications,OZ501-HRD Feeder,ATOS IT SERVICES UK LTD,1140952,46.00 ,IT peripherals/individual ordered software and equipment,
Ministry of Justice,MoJ HQ,29-Aug-14 ,265000-IT & Telecommunications,OZ501-HRD Feeder,ATOS IT SERVICES UK LTD,1140952,25.78 ,IT peripherals/individual ordered software and equipment,
Ministry of Justice,MoJ HQ,29-Aug-14 ,265000-IT & Telecommunications,OZ501-HRD Feeder,ATOS IT SERVICES UK LTD,1140952,25.78 ,IT peripherals/individual ordered software and equipment,
Ministry of Justice,MoJ HQ,29-Aug-14 ,265000-IT & Telecommunications,OZ501-HRD Feeder,ATOS IT SERVICES UK LTD,1140952,25.78 ,IT peripherals/individual ordered software and equipment,
Ministry of Justice,MoJ HQ,29-Aug-14 ,265000-IT & Telecommunications,OZ501-HRD Feeder,ATOS IT SERVICES UK LTD,1140952,25.78 ,IT peripherals/individual ordered software and equipment,
Ministry of Justice,MoJ HQ,29-Aug-14 ,265000-IT & Telecommunications,OZ501-HRD Feeder,ATOS IT SERVICES UK LTD,1140952,66.86 ,IT peripherals/individual ordered software and equipment,
Ministry of Justice,MoJ HQ,29-Aug-14 ,265000-IT & Telecommunications,OZ501-HRD Feeder,ATOS IT SERVICES UK LTD,1140952,25.23 ,IT peripherals/individual ordered software and equipment,
Ministry of Justice,MoJ HQ,29-Aug-14 ,265000-IT & Telecommunications,OZ501-HRD Feeder,ATOS IT SERVICES UK LTD,1140952,25.78 ,IT peripherals/individual ordered software and equipment,
Ministry of Justice,MoJ HQ,29-Aug-14 ,265000-IT & Telecommunications,OZ501-HRD Feeder,ATOS IT SERVICES UK LTD,1140952,25.78 ,IT peripherals/individual ordered software and equipment,
Ministry of Justice,MoJ HQ,29-Aug-14 ,265000-IT & Telecommunications,OZ501-HRD Feeder,ATOS IT SERVICES UK LTD,1140952,25.78 ,IT peripherals/individual ordered software and equipment,
Ministry of Justice,MoJ HQ,14-Aug-14 ,265000-IT & Telecommunications,NZ900-Finance & Corporate Services,ATOS IT SERVICES UK LTD,1139891,"78,469.00 ",Work related to the creation of flexible work spaces at Petty France,
Ministry of Justice,MoJ HQ,29-Aug-14 ,265000-IT & Telecommunications,NZ900-Finance & Corporate Services,ATOS IT SERVICES UK LTD,1140952,169.79 ,IT peripherals/individual ordered software and equipment,
Ministry of Justice,MoJ HQ,29-Aug-14 ,265000-IT & Telecommunications,NZ900-Finance & Corporate Services,ATOS IT SERVICES UK LTD,1140952,416.16 ,IT peripherals/individual ordered software and equipment,
Ministry of Justice,MoJ HQ,29-Aug-14 ,265000-IT & Telecommunications,NZ900-Finance & Corporate Services,ATOS IT SERVICES UK LTD,1140952,25.78 ,IT peripherals/individual ordered software and equipment,
Ministry of Justice,MoJ HQ,29-Aug-14 ,265000-IT & Telecommunications,NZ900-Finance & Corporate Services,ATOS IT SERVICES UK LTD,1140952,25.78 ,IT peripherals/individual ordered software and equipment,
Ministry of Justice,MoJ HQ,29-Aug-14 ,265000-IT & Telecommunications,NZ900-Finance & Corporate Services,ATOS IT SERVICES UK LTD,1140952,25.23 ,IT peripherals/individual ordered software and equipment,
Ministry of Justice,MoJ HQ,29-Aug-14 ,265000-IT & Telecommunications,NZ900-Finance & Corporate Services,ATOS IT SERVICES UK LTD,1140952,25.23 ,IT peripherals/individual ordered software and equipment,
Ministry of Justice,MoJ HQ,28-Aug-14 ,265000-IT & Telecommunications,NZ900-Finance & Corporate Services,ATOS IT SERVICES UK LTD,1140771,"1,042,955.25 ",Monthly ATOS IT costs for Network Service charges,
Ministry of Justice,MoJ HQ,04-Aug-14 ,265000-IT & Telecommunications,NZ900-Finance & Corporate Services,ATOS IT SERVICES UK LTD,1139219,"934,473.10 ",Monthly ATOS IT costs for Hosting Service charges,
Ministry of Justice,MoJ HQ,04-Aug-14 ,265000-IT & Telecommunications,NZ900-Finance & Corporate Services,ATOS IT SERVICES UK LTD,1139219,"623,927.45 ",Monthly ATOS IT costs for Desktop Service charges,
Ministry of Justice,MoJ HQ,04-Aug-14 ,265000-IT & Telecommunications,NZ900-Finance & Corporate Services,ATOS IT SERVICES UK LTD,1139219,"548,404.00 ",Monthly ATOS IT costs for SIAM Service charges,
Ministry of Justice,MoJ HQ,28-Aug-14 ,265000-IT & Telecommunications,NZ900-Finance & Corporate Services,ATOS IT SERVICES UK LTD,1140771,"253,149.50 ",Monthly ATOS IT costs for Network Service charges,
Ministry of Justice,MoJ HQ,04-Aug-14 ,265000-IT & Telecommunications,NZ900-Finance & Corporate Services,ATOS IT SERVICES UK LTD,1139219,"185,175.25 ",Monthly ATOS IT costs for Hosting Service charges,
Ministry of Justice,MoJ HQ,04-Aug-14 ,265000-IT & Telecommunications,NZ900-Finance & Corporate Services,ATOS IT SERVICES UK LTD,1139219,"159,754.14 ",Monthly ATOS IT costs for General IT charges,
Ministry of Justice,MoJ HQ,04-Aug-14 ,265000-IT & Telecommunications,NZ900-Finance & Corporate Services,ATOS IT SERVICES UK LTD,1139219,"131,289.08 ",Monthly ATOS IT costs for Hosting Service charges,
Ministry of Justice,MoJ HQ,04-Aug-14 ,265000-IT & Telecommunications,NZ900-Finance & Corporate Services,ATOS IT SERVICES UK LTD,1139219,"127,434.60 ",Monthly ATOS IT costs for Laptop Service charges,
Ministry of Justice,MoJ HQ,28-Aug-14 ,265000-IT & Telecommunications,NZ900-Finance & Corporate Services,ATOS IT SERVICES UK LTD,1140771,"73,144.00 ",One-off ATOS IT cost for Network Service charges,
Ministry of Justice,MoJ HQ,04-Aug-14 ,265000-IT & Telecommunications,NZ900-Finance & Corporate Services,ATOS IT SERVICES UK LTD,1139219,"54,859.11 ",Monthly ATOS IT cost for Application Maintenance & Support Service charges,
Ministry of Justice,MoJ HQ,29-Aug-14 ,265000-IT & Telecommunications,NZ900-Finance & Corporate Services,ATOS IT SERVICES UK LTD,1140952,"1,398.30 ",One-off charge for Power down service,
Ministry of Justice,MoJ HQ,29-Aug-14 ,265000-IT & Telecommunications,NZ900-Finance & Corporate Services,ATOS IT SERVICES UK LTD,1140952,859.37 ,One-off charge for Power down service,
Ministry of Justice,MoJ HQ,29-Aug-14 ,265000-IT & Telecommunications,NZ900-Finance & Corporate Services,ATOS IT SERVICES UK LTD,1140952,859.37 ,One-off charge for Power down service,
Ministry of Justice,MoJ HQ,29-Aug-14 ,265000-IT & Telecommunications,NZ900-Finance & Corporate Services,ATOS IT SERVICES UK LTD,1140952,"1,398.30 ",One-off charge for Power down service,
Ministry of Justice,MoJ HQ,29-Aug-14 ,265000-IT & Telecommunications,NZ900-Finance & Corporate Services,ATOS IT SERVICES UK LTD,1140952,859.37 ,One-off charge for Power down service,
Ministry of Justice,MoJ HQ,29-Aug-14 ,265000-IT & Telecommunications,NZ900-Finance & Corporate Services,ATOS IT SERVICES UK LTD,1140952,859.37 ,One-off charge for Power down service,
Ministry of Justice,MoJ HQ,29-Aug-14 ,265000-IT & Telecommunications,NZ900-Finance & Corporate Services,ATOS IT SERVICES UK LTD,1140952,859.37 ,One-off charge for Power down service,
Ministry of Justice,MoJ HQ,29-Aug-14 ,265000-IT & Telecommunications,NZ900-Finance & Corporate Services,ATOS IT SERVICES UK LTD,1140952,859.37 ,One-off charge for Power down service,
Ministry of Justice,MoJ HQ,29-Aug-14 ,265000-IT & Telecommunications,NZ900-Finance & Corporate Services,ATOS IT SERVICES UK LTD,1140952,859.37 ,One-off charge for Power down service,
Ministry of Justice,MoJ HQ,29-Aug-14 ,265000-IT & Telecommunications,NZ900-Finance & Corporate Services,ATOS IT SERVICES UK LTD,1140952,"3,437.48 ",One-off charge for Power down service,
Ministry of Justice,MoJ HQ,29-Aug-14 ,265000-IT & Telecommunications,NZ900-Finance & Corporate Services,ATOS IT SERVICES UK LTD,1140952,"1,398.30 ",One-off charge for Power down service,
Ministry of Justice,MoJ HQ,29-Aug-14 ,265000-IT & Telecommunications,NZ900-Finance & Corporate Services,ATOS IT SERVICES UK LTD,1140952,859.37 ,One-off charge for Power down service,
Ministry of Justice,MoJ HQ,29-Aug-14 ,265000-IT & Telecommunications,NZ900-Finance & Corporate Services,ATOS IT SERVICES UK LTD,1140952,"1,398.30 ",One-off charge for Power down service,
Ministry of Justice,MoJ HQ,04-Aug-14 ,265000-IT & Telecommunications,NZ900-Finance & Corporate Services,ATOS IT SERVICES UK LTD,1139219,"45,081.78 ",Monthly ATOS IT costs for General IT charges,
Ministry of Justice,MoJ HQ,28-Aug-14 ,265000-IT & Telecommunications,NZ900-Finance & Corporate Services,ATOS IT SERVICES UK LTD,1140771,"31,739.82 ",Monthly ATOS IT costs for Network Service charges,
Ministry of Justice,MoJ HQ,04-Aug-14 ,265000-IT & Telecommunications,NZ900-Finance & Corporate Services,ATOS IT SERVICES UK LTD,1139219,"24,860.62 ",Monthly ATOS IT costs for Telephony Service charges,
Ministry of Justice,MoJ HQ,04-Aug-14 ,265000-IT & Telecommunications,NZ900-Finance & Corporate Services,ATOS IT SERVICES UK LTD,1139219,"4,972.12 ",Monthly ATOS IT costs for Telephony Service charges,
Ministry of Justice,MoJ HQ,21-Aug-14 ,265000-IT & Telecommunications,NZ900-Finance & Corporate Services,CGI IT UK LTD,1140371,"29,913.00 ",Provision for Licences,
Ministry of Justice,MoJ HQ,21-Aug-14 ,265000-IT & Telecommunications,NZ900-Finance & Corporate Services,CGI IT UK LTD,1140371,"21,091.00 ","Application, Maintenance and Support charges for small applications",
Ministry of Justice,MoJ HQ,29-Aug-14 ,265000-IT & Telecommunications,NZ900-Finance & Corporate Services,ATOS IT SERVICES UK LTD,1140952,78.26 ,IT peripherals/individual ordered software and equipment,
Ministry of Justice,MoJ HQ,07-Aug-14 ,265000-IT & Telecommunications,NZ900-Finance & Corporate Services,LOCKHEED MARTIN UK LIMITED,1139602,"1,239,063.25 ",One-off Lockheed Martin cost for service transition charges,
Ministry of Justice,MoJ HQ,11-Aug-14 ,264000-Consultancy,NZ900-Finance & Corporate Services,METHODS CONSULTING,25472,"88,833.33 ",To provide a managed service for the provision of the specialist architecture and service design capability. ,
Ministry of Justice,MoJ HQ,11-Aug-14 ,264000-Consultancy,NZ900-Finance & Corporate Services,METHODS CONSULTING,25472,"17,766.67 ",To provide a managed service for the provision of the specialist architecture and service design capability. ,
Ministry of Justice,MoJ HQ,11-Aug-14 ,264000-Consultancy,NZ900-Finance & Corporate Services,METHODS CONSULTING,25472,"88,833.33 ",To provide a managed service for the provision of the specialist architecture and service design capability. ,
Ministry of Justice,MoJ HQ,11-Aug-14 ,264000-Consultancy,NZ900-Finance & Corporate Services,METHODS CONSULTING,25472,"17,766.67 ",To provide a managed service for the provision of the specialist architecture and service design capability. ,
Ministry of Justice,MoJ HQ,28-Aug-14 ,222002-Other Property Costs,NZ900-Finance & Corporate Services,HP ENTERPRISE SERVICES UK LTD,1140835,"78,980.64 ",One-off Hewlett Packard charges for Exit management costs,
Ministry of Justice,MoJ HQ,28-Aug-14 ,222002-Other Property Costs,NZ900-Finance & Corporate Services,HP ENTERPRISE SERVICES UK LTD,1140835,"15,796.13 ",One-off Hewlett Packard charges for Exit management costs,
Ministry of Justice,MoJ HQ,07-Aug-14 ,265000-IT & Telecommunications,NZ900-Finance & Corporate Services,LOCKHEED MARTIN UK LIMITED,1139602,"70,000.00 ",One-off Lockheed Martin cost for service transition charges,
Ministry of Justice,MoJ HQ,26-Aug-14 ,265000-IT & Telecommunications,NZ900-Finance & Corporate Services,LOCKHEED MARTIN UK LIMITED,1140668,"55,380.95 ",One-off Lockheed Martin cost for Transition Assurance charges,
Ministry of Justice,MoJ HQ,28-Aug-14 ,265000-IT & Telecommunications,NZ900-Finance & Corporate Services,STERIA LTD,1140912,"50,437.31 ",One-off Steria Ltd cost for Exit Management services,
Ministry of Justice,MoJ HQ,28-Aug-14 ,264000-Consultancy,NZ900-Finance & Corporate Services,FDM GROUP LTD,1140815,"48,600.00 ",Monthly FDM Programme support service charges,
Ministry of Justice,MoJ HQ,28-Aug-14 ,264000-Consultancy,NZ900-Finance & Corporate Services,FDM GROUP LTD,1140815,"9,720.00 ",Monthly FDM Programme support service charges,
Ministry of Justice,MoJ HQ,26-Aug-14 ,265000-IT & Telecommunications,NZ900-Finance & Corporate Services,SOLIRIUS LTD,1140722,"48,420.00 ",Monthly Solirius Ltd Programme support service charges,
Ministry of Justice,MoJ HQ,26-Aug-14 ,265000-IT & Telecommunications,NZ900-Finance & Corporate Services,SOLIRIUS LTD,1140722,"9,684.00 ",Monthly Solirius Ltd Programme support service charges,
Ministry of Justice,MoJ HQ,29-Aug-14 ,265000-IT & Telecommunications,NZ900-Finance & Corporate Services,ATOS IT SERVICES UK LTD,1140952,8.51 ,IT peripherals/individual ordered software and equipment,
Ministry of Justice,MoJ HQ,29-Aug-14 ,265000-IT & Telecommunications,NZ900-Finance & Corporate Services,ATOS IT SERVICES UK LTD,1140952,248.34 ,IT peripherals/individual ordered software and equipment,
Ministry of Justice,MoJ HQ,07-Aug-14 ,222002-Other Property Costs,NZ900-Finance & Corporate Services,ATOS IT SERVICES UK LTD,1139477,"27,256.55 ",One-off ATOS charges for Exit management,
Ministry of Justice,MoJ HQ,07-Aug-14 ,222002-Other Property Costs,NZ900-Finance & Corporate Services,ATOS IT SERVICES UK LTD,1139477,"5,451.31 ",One-off ATOS charges for Exit management,
Ministry of Justice,MoJ HQ,07-Aug-14 ,265000-IT & Telecommunications,NZ900-Finance & Corporate Services,CGI IT UK LTD,1139508,"639,240.55 ",One-off CGI charges for transition Hosting charges,
Ministry of Justice,MoJ HQ,21-Aug-14 ,265000-IT & Telecommunications,NZ900-Finance & Corporate Services,LOCKHEED MARTIN UK LIMITED,1140472,"36,374.77 ",One-off Lockheed Martin charges for transition SIAM charges,
Ministry of Justice,MoJ HQ,26-Aug-14 ,265000-IT & Telecommunications,NZ900-Finance & Corporate Services,LOCKHEED MARTIN UK LIMITED,1140668,"1,153,502.65 ",Monthly Lockheed Martin costs for SIAM charges,
Ministry of Justice,MoJ HQ,14-Aug-14 ,265000-IT & Telecommunications,NZ900-Finance & Corporate Services,ARK DATA CENTRES LTD,1139888,"188,009.64 ",Data Centre Racking and Storage Charges July 2014,
Ministry of Justice,MoJ HQ,11-Aug-14 ,265000-IT & Telecommunications,NZ900-Finance & Corporate Services,HP ENTERPRISE SERVICES UK LTD,1139807,"1,265,349.81 ",HP NOMS ICT Services - Application Maintenance & Support,
Ministry of Justice,MoJ HQ,26-Aug-14 ,265000-IT & Telecommunications,NZ900-Finance & Corporate Services,HP ENTERPRISE SERVICES UK LTD,1140652,"723,075.59 ",HP NOMS ICT Services - Standard Telephony Monthly Line Rental,
Ministry of Justice,MoJ HQ,26-Aug-14 ,265000-IT & Telecommunications,NZ900-Finance & Corporate Services,HP ENTERPRISE SERVICES UK LTD,1140652,"144,615.12 ",HP NOMS ICT Services - Standard Telephony Monthly Line Rental,
Ministry of Justice,MoJ HQ,26-Aug-14 ,265000-IT & Telecommunications,NZ900-Finance & Corporate Services,HP ENTERPRISE SERVICES UK LTD,1140652,"660,049.83 ",HP NOMS ICT Services - Hostings charge ,
Ministry of Justice,MoJ HQ,11-Aug-14 ,265000-IT & Telecommunications,NZ900-Finance & Corporate Services,HP ENTERPRISE SERVICES UK LTD,1139807,"579,957.11 ",HP NOMS ICT Services - Network Services,
Ministry of Justice,MoJ HQ,26-Aug-14 ,265000-IT & Telecommunications,NZ900-Finance & Corporate Services,HP ENTERPRISE SERVICES UK LTD,1140652,"403,068.89 ",HP NOMS ICT Services - General Services,
Ministry of Justice,MoJ HQ,26-Aug-14 ,265000-IT & Telecommunications,NZ900-Finance & Corporate Services,HP ENTERPRISE SERVICES UK LTD,1140652,"235,581.61 ",HP NOMS ICT Monthly Services - Security,
Ministry of Justice,MoJ HQ,04-Aug-14 ,265000-IT & Telecommunications,NZ900-Finance & Corporate Services,HP ENTERPRISE SERVICES UK LTD,1139310,"72,618.12 ",HP NOMS ICT Services - General Services,
Ministry of Justice,MoJ HQ,07-Aug-14 ,265000-IT & Telecommunications,NZ900-Finance & Corporate Services,HP ENTERPRISE SERVICES UK LTD,1139571,"71,438.71 ",HP NOMS ICT Services - Standard Telephony Monthly Line Rental,
Ministry of Justice,MoJ HQ,07-Aug-14 ,265000-IT & Telecommunications,NZ900-Finance & Corporate Services,HP ENTERPRISE SERVICES UK LTD,1139571,"14,287.74 ",HP NOMS ICT Services - Standard Telephony Monthly Line Rental,
Ministry of Justice,MoJ HQ,04-Aug-14 ,265000-IT & Telecommunications,NZ900-Finance & Corporate Services,HP ENTERPRISE SERVICES UK LTD,1139310,"63,870.75 ",HP NOMS ICT Services - Network Services,
Ministry of Justice,MoJ HQ,26-Aug-14 ,265000-IT & Telecommunications,NZ900-Finance & Corporate Services,HP ENTERPRISE SERVICES UK LTD,1140652,"23,958.18 ",HP NOMS ICT Services - Service Integration and Management,
Ministry of Justice,MoJ HQ,14-Aug-14 ,265000-IT & Telecommunications,NZ900-Finance & Corporate Services,STERIA LTD,1140075,"845,538.76 ",Desktop Charges for Aug 2014,
Ministry of Justice,MoJ HQ,14-Aug-14 ,265000-IT & Telecommunications,NZ900-Finance & Corporate Services,STERIA LTD,1140075,"844,429.37 ",IT Hosting Charges Aug 2014,
Ministry of Justice,MoJ HQ,07-Aug-14 ,265000-IT & Telecommunications,NZ900-Finance & Corporate Services,STERIA LTD,1139697,"605,519.71 ",Application and Maintenance Support Charges Aug 2014,
Ministry of Justice,MoJ HQ,14-Aug-14 ,265000-IT & Telecommunications,NZ900-Finance & Corporate Services,STERIA LTD,1140075,"605,519.71 ",Application and Maintenance Support Charges July 2014,
Ministry of Justice,MoJ HQ,14-Aug-14 ,265000-IT & Telecommunications,NZ900-Finance & Corporate Services,STERIA LTD,1140075,"140,214.24 ",Network Charges including the provision of WAN Aug 2014,
Ministry of Justice,MoJ HQ,14-Aug-14 ,265000-IT & Telecommunications,NZ900-Finance & Corporate Services,STERIA LTD,1140075,"63,279.24 ",Service Desk Support Aug 2014,
Ministry of Justice,MoJ HQ,04-Aug-14 ,265000-IT & Telecommunications,NZ900-Finance & Corporate Services,FUJITSU SERVICES LTD,1139281,"311,088.57 ",Criminal Justice Secure Exchange - Operations Production,
Ministry of Justice,MoJ HQ,04-Aug-14 ,265000-IT & Telecommunications,NZ900-Finance & Corporate Services,FUJITSU SERVICES LTD,1139281,"180,729.93 ",Monthly Fujitsu costs for Application Maintenance & Support charges for Exchange services,
Ministry of Justice,MoJ HQ,04-Aug-14 ,265000-IT & Telecommunications,NZ900-Finance & Corporate Services,FUJITSU SERVICES LTD,1139281,"144,796.79 ",Monthly Fujitsu costs for Hosting charges for Exchange services,
Ministry of Justice,MoJ HQ,04-Aug-14 ,265000-IT & Telecommunications,NZ900-Finance & Corporate Services,FUJITSU SERVICES LTD,1139281,"72,873.99 ",Criminal Justice Secure Exchange - Soultion Assurance,
Ministry of Justice,MoJ HQ,04-Aug-14 ,265000-IT & Telecommunications,NZ900-Finance & Corporate Services,FUJITSU SERVICES LTD,1139281,"46,935.57 ",Criminal Justice Secure Exchange - Service Desk,
Ministry of Justice,MoJ HQ,29-Aug-14 ,265000-IT & Telecommunications,NZ900-Finance & Corporate Services,ATOS IT SERVICES UK LTD,1140952,25.78 ,IT peripherals/individual ordered software and equipment,
Ministry of Justice,MoJ HQ,29-Aug-14 ,265000-IT & Telecommunications,NZ900-Finance & Corporate Services,ATOS IT SERVICES UK LTD,1140952,11.62 ,IT peripherals/individual ordered software and equipment,
Ministry of Justice,MoJ HQ,04-Aug-14 ,265000-IT & Telecommunications,NZ900-Finance & Corporate Services,FUJITSU SERVICES LTD,1139281,"36,340.90 ",Monthly Fujitsu costs for Application Maintenance & Support charges for Exchange services,
Ministry of Justice,MoJ HQ,04-Aug-14 ,265000-IT & Telecommunications,NZ900-Finance & Corporate Services,FUJITSU SERVICES LTD,1139281,"34,906.33 ",Criminal Justice Secure Exchange - Security Intruder Detection,
Ministry of Justice,MoJ HQ,04-Aug-14 ,265000-IT & Telecommunications,NZ900-Finance & Corporate Services,FUJITSU SERVICES LTD,1139281,"34,517.33 ",Criminal Justice Secure Exchange - Managed Service Governance ,
Ministry of Justice,MoJ HQ,04-Aug-14 ,512000-Intangible GBV - Additions,NZ900-Finance & Corporate Services,FUJITSU SERVICES LTD,1139281,"30,792.61 ",Criminal Justice Secure Exchange - SAN Replacement,
Ministry of Justice,MoJ HQ,04-Aug-14 ,512000-Intangible GBV - Additions,NZ900-Finance & Corporate Services,STERIA LTD,1139408,"26,845.32 ",Criminal Justice Secure Exchange - SAN Replacement,
Ministry of Justice,MoJ HQ,18-Aug-14 ,512000-Intangible GBV - Additions,NZ900-Finance & Corporate Services,FUJITSU SERVICES LTD,1140163,"26,215.09 ",Multiple Firewall Replacement,
Ministry of Justice,MoJ HQ,18-Aug-14 ,265000-IT & Telecommunications,NZ900-Finance & Corporate Services,TRUSTMARQUE SOLUTIONS LTD,1140275,"38,914.43 ", Hardware and Software Maintenance Support Renewal,
Ministry of Justice,MoJ HQ,18-Aug-14 ,265000-IT & Telecommunications,NZ900-Finance & Corporate Services,TRUSTMARQUE SOLUTIONS LTD,1140275,"7,782.89 ", Hardware and Software Maintenance Support Renewal,
Ministry of Justice,MoJ HQ,26-Aug-14 ,265000-IT & Telecommunications,NZ900-Finance & Corporate Services,VODAFONE LTD FORMERLY CABLE & WIRELESS UK,1140740,"579,320.78 ",CJS Messaging,
Ministry of Justice,MoJ HQ,26-Aug-14 ,265000-IT & Telecommunications,NZ900-Finance & Corporate Services,VODAFONE LTD FORMERLY CABLE & WIRELESS UK,1140740,"115,864.16 ",CJS Messaging,
Ministry of Justice,MoJ HQ,18-Aug-14 ,265000-IT & Telecommunications,NZ900-Finance & Corporate Services,VODAFONE CORPORATE LTD,1140284,"212,880.38 ",Criminal Justice Secure Mail Service - Monthly Charge,
Ministry of Justice,MoJ HQ,18-Aug-14 ,265000-IT & Telecommunications,NZ900-Finance & Corporate Services,VODAFONE CORPORATE LTD,1140284,"42,576.08 ",Criminal Justice Secure Mail Service - Monthly Charge,
Ministry of Justice,MoJ HQ,18-Aug-14 ,265000-IT & Telecommunications,NZ900-Finance & Corporate Services,VODAFONE CORPORATE LTD,1140284,"212,880.38 ",Criminal Justice Secure Mail Service - Monthly Charge,
Ministry of Justice,MoJ HQ,18-Aug-14 ,265000-IT & Telecommunications,NZ900-Finance & Corporate Services,VODAFONE CORPORATE LTD,1140284,"42,576.08 ",Criminal Justice Secure Mail Service - Monthly Charge,
Ministry of Justice,MoJ HQ,18-Aug-14 ,265000-IT & Telecommunications,NZ900-Finance & Corporate Services,VODAFONE CORPORATE LTD,1140284,"199,920.38 ",Criminal Justice Secure Mail Service - Monthly Charge,
Ministry of Justice,MoJ HQ,18-Aug-14 ,265000-IT & Telecommunications,NZ900-Finance & Corporate Services,VODAFONE CORPORATE LTD,1140284,"39,984.08 ",Criminal Justice Secure Mail Service - Monthly Charge,
Ministry of Justice,MoJ HQ,18-Aug-14 ,265000-IT & Telecommunications,NZ900-Finance & Corporate Services,VODAFONE CORPORATE LTD,1140284,"199,920.38 ",Criminal Justice Secure Mail Service - Monthly Charge,
Ministry of Justice,MoJ HQ,18-Aug-14 ,265000-IT & Telecommunications,NZ900-Finance & Corporate Services,VODAFONE CORPORATE LTD,1140284,"39,984.08 ",Criminal Justice Secure Mail Service - Monthly Charge,
Ministry of Justice,MoJ HQ,18-Aug-14 ,265000-IT & Telecommunications,NZ900-Finance & Corporate Services,VODAFONE CORPORATE LTD,1140284,"199,920.38 ",Criminal Justice Secure Mail Service - Monthly Charge,
Ministry of Justice,MoJ HQ,18-Aug-14 ,265000-IT & Telecommunications,NZ900-Finance & Corporate Services,VODAFONE CORPORATE LTD,1140284,"39,984.08 ",Criminal Justice Secure Mail Service - Monthly Charge,
Ministry of Justice,MoJ HQ,29-Aug-14 ,265000-IT & Telecommunications,NZ900-Finance & Corporate Services,ATOS IT SERVICES UK LTD,1140952,156.06 ,IT peripherals/individual ordered software and equipment,
Ministry of Justice,MoJ HQ,29-Aug-14 ,265000-IT & Telecommunications,NZ900-Finance & Corporate Services,ATOS IT SERVICES UK LTD,1140952,205.63 ,IT peripherals/individual ordered software and equipment,
Ministry of Justice,MoJ HQ,29-Aug-14 ,265000-IT & Telecommunications,NZ900-Finance & Corporate Services,ATOS IT SERVICES UK LTD,1140952,164.00 ,IT peripherals/individual ordered software and equipment,
Ministry of Justice,MoJ HQ,29-Aug-14 ,265000-IT & Telecommunications,NZ900-Finance & Corporate Services,ATOS IT SERVICES UK LTD,1140952,492.00 ,IT peripherals/individual ordered software and equipment,
Ministry of Justice,MoJ HQ,29-Aug-14 ,265000-IT & Telecommunications,NZ900-Finance & Corporate Services,ATOS IT SERVICES UK LTD,1140952,164.00 ,IT peripherals/individual ordered software and equipment,
Ministry of Justice,MoJ HQ,29-Aug-14 ,265000-IT & Telecommunications,NZ900-Finance & Corporate Services,ATOS IT SERVICES UK LTD,1140952,164.00 ,IT peripherals/individual ordered software and equipment,
Ministry of Justice,MoJ HQ,29-Aug-14 ,265000-IT & Telecommunications,NZ900-Finance & Corporate Services,ATOS IT SERVICES UK LTD,1140952,164.00 ,IT peripherals/individual ordered software and equipment,
Ministry of Justice,MoJ HQ,29-Aug-14 ,265000-IT & Telecommunications,NZ900-Finance & Corporate Services,ATOS IT SERVICES UK LTD,1140952,164.00 ,IT peripherals/individual ordered software and equipment,
Ministry of Justice,MoJ HQ,29-Aug-14 ,265000-IT & Telecommunications,NZ900-Finance & Corporate Services,ATOS IT SERVICES UK LTD,1140952,78.26 ,IT peripherals/individual ordered software and equipment,
Ministry of Justice,MoJ HQ,29-Aug-14 ,265000-IT & Telecommunications,NZ900-Finance & Corporate Services,ATOS IT SERVICES UK LTD,1140952,25.78 ,IT peripherals/individual ordered software and equipment,
Ministry of Justice,MoJ HQ,29-Aug-14 ,265000-IT & Telecommunications,NZ900-Finance & Corporate Services,ATOS IT SERVICES UK LTD,1140952,25.78 ,IT peripherals/individual ordered software and equipment,
Ministry of Justice,MoJ HQ,29-Aug-14 ,265000-IT & Telecommunications,NZ900-Finance & Corporate Services,ATOS IT SERVICES UK LTD,1140952,46.00 ,IT peripherals/individual ordered software and equipment,
Ministry of Justice,MoJ HQ,29-Aug-14 ,265000-IT & Telecommunications,NZ900-Finance & Corporate Services,ATOS IT SERVICES UK LTD,1140952,25.78 ,IT peripherals/individual ordered software and equipment,
Ministry of Justice,MoJ HQ,29-Aug-14 ,265000-IT & Telecommunications,NZ900-Finance & Corporate Services,ATOS IT SERVICES UK LTD,1140952,46.00 ,IT peripherals/individual ordered software and equipment,
Ministry of Justice,MoJ HQ,29-Aug-14 ,265000-IT & Telecommunications,NZ900-Finance & Corporate Services,ATOS IT SERVICES UK LTD,1140952,25.78 ,IT peripherals/individual ordered software and equipment,
Ministry of Justice,MoJ HQ,29-Aug-14 ,265000-IT & Telecommunications,NZ900-Finance & Corporate Services,ATOS IT SERVICES UK LTD,1140952,25.78 ,IT peripherals/individual ordered software and equipment,
Ministry of Justice,MoJ HQ,29-Aug-14 ,265000-IT & Telecommunications,NZ900-Finance & Corporate Services,ATOS IT SERVICES UK LTD,1140952,46.00 ,IT peripherals/individual ordered software and equipment,
Ministry of Justice,MoJ HQ,29-Aug-14 ,265000-IT & Telecommunications,NZ900-Finance & Corporate Services,ATOS IT SERVICES UK LTD,1140952,25.78 ,IT peripherals/individual ordered software and equipment,
Ministry of Justice,MoJ HQ,29-Aug-14 ,265000-IT & Telecommunications,NZ900-Finance & Corporate Services,ATOS IT SERVICES UK LTD,1140952,46.00 ,IT peripherals/individual ordered software and equipment,
Ministry of Justice,MoJ HQ,29-Aug-14 ,265000-IT & Telecommunications,NZ900-Finance & Corporate Services,ATOS IT SERVICES UK LTD,1140952,46.00 ,IT peripherals/individual ordered software and equipment,
Ministry of Justice,MoJ HQ,29-Aug-14 ,265000-IT & Telecommunications,NZ900-Finance & Corporate Services,ATOS IT SERVICES UK LTD,1140952,138.00 ,IT peripherals/individual ordered software and equipment,
Ministry of Justice,MoJ HQ,29-Aug-14 ,265000-IT & Telecommunications,NZ900-Finance & Corporate Services,ATOS IT SERVICES UK LTD,1140952,25.78 ,IT peripherals/individual ordered software and equipment,
Ministry of Justice,MoJ HQ,29-Aug-14 ,265000-IT & Telecommunications,NZ900-Finance & Corporate Services,ATOS IT SERVICES UK LTD,1140952,46.00 ,IT peripherals/individual ordered software and equipment,
Ministry of Justice,MoJ HQ,29-Aug-14 ,265000-IT & Telecommunications,NZ900-Finance & Corporate Services,ATOS IT SERVICES UK LTD,1140952,46.00 ,IT peripherals/individual ordered software and equipment,
Ministry of Justice,MoJ HQ,29-Aug-14 ,265000-IT & Telecommunications,NZ900-Finance & Corporate Services,ATOS IT SERVICES UK LTD,1140952,25.78 ,IT peripherals/individual ordered software and equipment,
Ministry of Justice,MoJ HQ,29-Aug-14 ,265000-IT & Telecommunications,NZ900-Finance & Corporate Services,ATOS IT SERVICES UK LTD,1140952,164.80 ,IT peripherals/individual ordered software and equipment,
Ministry of Justice,MoJ HQ,29-Aug-14 ,265000-IT & Telecommunications,NZ900-Finance & Corporate Services,ATOS IT SERVICES UK LTD,1140952,25.78 ,IT peripherals/individual ordered software and equipment,
Ministry of Justice,MoJ HQ,29-Aug-14 ,265000-IT & Telecommunications,NZ900-Finance & Corporate Services,ATOS IT SERVICES UK LTD,1140952,25.78 ,IT peripherals/individual ordered software and equipment,
Ministry of Justice,MoJ HQ,29-Aug-14 ,265000-IT & Telecommunications,NZ900-Finance & Corporate Services,ATOS IT SERVICES UK LTD,1140952,25.78 ,IT peripherals/individual ordered software and equipment,
Ministry of Justice,MoJ HQ,29-Aug-14 ,265000-IT & Telecommunications,NZ900-Finance & Corporate Services,ATOS IT SERVICES UK LTD,1140952,46.00 ,IT peripherals/individual ordered software and equipment,
Ministry of Justice,MoJ HQ,29-Aug-14 ,265000-IT & Telecommunications,NZ900-Finance & Corporate Services,ATOS IT SERVICES UK LTD,1140952,25.78 ,IT peripherals/individual ordered software and equipment,
Ministry of Justice,MoJ HQ,29-Aug-14 ,265000-IT & Telecommunications,NZ900-Finance & Corporate Services,ATOS IT SERVICES UK LTD,1140952,26.40 ,IT peripherals/individual ordered software and equipment,
Ministry of Justice,MoJ HQ,29-Aug-14 ,265000-IT & Telecommunications,NZ900-Finance & Corporate Services,ATOS IT SERVICES UK LTD,1140952,51.56 ,IT peripherals/individual ordered software and equipment,
Ministry of Justice,MoJ HQ,29-Aug-14 ,265000-IT & Telecommunications,NZ900-Finance & Corporate Services,ATOS IT SERVICES UK LTD,1140952,51.56 ,IT peripherals/individual ordered software and equipment,
Ministry of Justice,MoJ HQ,29-Aug-14 ,265000-IT & Telecommunications,NZ900-Finance & Corporate Services,ATOS IT SERVICES UK LTD,1140952,46.00 ,IT peripherals/individual ordered software and equipment,
Ministry of Justice,MoJ HQ,29-Aug-14 ,265000-IT & Telecommunications,NZ900-Finance & Corporate Services,ATOS IT SERVICES UK LTD,1140952,46.00 ,IT peripherals/individual ordered software and equipment,
Ministry of Justice,MoJ HQ,29-Aug-14 ,265000-IT & Telecommunications,NZ900-Finance & Corporate Services,ATOS IT SERVICES UK LTD,1140952,25.78 ,IT peripherals/individual ordered software and equipment,
Ministry of Justice,MoJ HQ,29-Aug-14 ,265000-IT & Telecommunications,NZ900-Finance & Corporate Services,ATOS IT SERVICES UK LTD,1140952,"2,898.00 ",IT peripherals/individual ordered software and equipment,
Ministry of Justice,MoJ HQ,29-Aug-14 ,265000-IT & Telecommunications,NZ900-Finance & Corporate Services,ATOS IT SERVICES UK LTD,1140952,11.62 ,IT peripherals/individual ordered software and equipment,
Ministry of Justice,MoJ HQ,29-Aug-14 ,265000-IT & Telecommunications,NZ900-Finance & Corporate Services,ATOS IT SERVICES UK LTD,1140952,11.62 ,IT peripherals/individual ordered software and equipment,
Ministry of Justice,MoJ HQ,29-Aug-14 ,265000-IT & Telecommunications,NZ900-Finance & Corporate Services,ATOS IT SERVICES UK LTD,1140952,11.62 ,IT peripherals/individual ordered software and equipment,
Ministry of Justice,MoJ HQ,29-Aug-14 ,265000-IT & Telecommunications,NZ900-Finance & Corporate Services,ATOS IT SERVICES UK LTD,1140952,11.62 ,IT peripherals/individual ordered software and equipment,
Ministry of Justice,MoJ HQ,29-Aug-14 ,265000-IT & Telecommunications,NZ900-Finance & Corporate Services,ATOS IT SERVICES UK LTD,1140952,11.62 ,IT peripherals/individual ordered software and equipment,
Ministry of Justice,MoJ HQ,29-Aug-14 ,265000-IT & Telecommunications,NZ900-Finance & Corporate Services,ATOS IT SERVICES UK LTD,1140952,11.62 ,IT peripherals/individual ordered software and equipment,
Ministry of Justice,MoJ HQ,29-Aug-14 ,265000-IT & Telecommunications,NZ900-Finance & Corporate Services,ATOS IT SERVICES UK LTD,1140952,11.62 ,IT peripherals/individual ordered software and equipment,
Ministry of Justice,MoJ HQ,29-Aug-14 ,265000-IT & Telecommunications,NZ900-Finance & Corporate Services,ATOS IT SERVICES UK LTD,1140952,82.78 ,IT peripherals/individual ordered software and equipment,
Ministry of Justice,MoJ HQ,29-Aug-14 ,265000-IT & Telecommunications,NZ900-Finance & Corporate Services,ATOS IT SERVICES UK LTD,1140952,78.26 ,IT peripherals/individual ordered software and equipment,
Ministry of Justice,MoJ HQ,29-Aug-14 ,265000-IT & Telecommunications,NZ900-Finance & Corporate Services,ATOS IT SERVICES UK LTD,1140952,82.78 ,IT peripherals/individual ordered software and equipment,
Ministry of Justice,MoJ HQ,29-Aug-14 ,265000-IT & Telecommunications,NZ900-Finance & Corporate Services,ATOS IT SERVICES UK LTD,1140952,82.78 ,IT peripherals/individual ordered software and equipment,
Ministry of Justice,MoJ HQ,29-Aug-14 ,265000-IT & Telecommunications,NZ900-Finance & Corporate Services,ATOS IT SERVICES UK LTD,1140952,82.78 ,IT peripherals/individual ordered software and equipment,
Ministry of Justice,MoJ HQ,29-Aug-14 ,265000-IT & Telecommunications,NZ900-Finance & Corporate Services,ATOS IT SERVICES UK LTD,1140952,82.78 ,IT peripherals/individual ordered software and equipment,
Ministry of Justice,MoJ HQ,29-Aug-14 ,265000-IT & Telecommunications,NZ900-Finance & Corporate Services,ATOS IT SERVICES UK LTD,1140952,66.86 ,IT peripherals/individual ordered software and equipment,
Ministry of Justice,MoJ HQ,29-Aug-14 ,265000-IT & Telecommunications,NZ900-Finance & Corporate Services,ATOS IT SERVICES UK LTD,1140952,82.78 ,IT peripherals/individual ordered software and equipment,
Ministry of Justice,MoJ HQ,29-Aug-14 ,265000-IT & Telecommunications,NZ900-Finance & Corporate Services,ATOS IT SERVICES UK LTD,1140952,82.78 ,IT peripherals/individual ordered software and equipment,
Ministry of Justice,MoJ HQ,29-Aug-14 ,265000-IT & Telecommunications,NZ900-Finance & Corporate Services,ATOS IT SERVICES UK LTD,1140952,98.47 ,IT peripherals/individual ordered software and equipment,
Ministry of Justice,MoJ HQ,29-Aug-14 ,265000-IT & Telecommunications,NZ900-Finance & Corporate Services,ATOS IT SERVICES UK LTD,1140952,113.16 ,IT peripherals/individual ordered software and equipment,
Ministry of Justice,MoJ HQ,29-Aug-14 ,265000-IT & Telecommunications,NZ900-Finance & Corporate Services,ATOS IT SERVICES UK LTD,1140952,164.00 ,IT peripherals/individual ordered software and equipment,
Ministry of Justice,MoJ HQ,29-Aug-14 ,265000-IT & Telecommunications,NZ900-Finance & Corporate Services,ATOS IT SERVICES UK LTD,1140952,113.16 ,IT peripherals/individual ordered software and equipment,
Ministry of Justice,MoJ HQ,29-Aug-14 ,265000-IT & Telecommunications,NZ900-Finance & Corporate Services,ATOS IT SERVICES UK LTD,1140952,164.00 ,IT peripherals/individual ordered software and equipment,
Ministry of Justice,MoJ HQ,29-Aug-14 ,265000-IT & Telecommunications,NZ900-Finance & Corporate Services,ATOS IT SERVICES UK LTD,1140952,46.00 ,IT peripherals/individual ordered software and equipment,
Ministry of Justice,MoJ HQ,29-Aug-14 ,265000-IT & Telecommunications,NZ900-Finance & Corporate Services,ATOS IT SERVICES UK LTD,1140952,46.00 ,IT peripherals/individual ordered software and equipment,
Ministry of Justice,MoJ HQ,29-Aug-14 ,265000-IT & Telecommunications,NZ900-Finance & Corporate Services,ATOS IT SERVICES UK LTD,1140952,46.00 ,IT peripherals/individual ordered software and equipment,
Ministry of Justice,MoJ HQ,29-Aug-14 ,265000-IT & Telecommunications,NZ900-Finance & Corporate Services,ATOS IT SERVICES UK LTD,1140952,51.56 ,IT peripherals/individual ordered software and equipment,
Ministry of Justice,MoJ HQ,29-Aug-14 ,265000-IT & Telecommunications,NZ900-Finance & Corporate Services,ATOS IT SERVICES UK LTD,1140952,25.78 ,IT peripherals/individual ordered software and equipment,
Ministry of Justice,MoJ HQ,29-Aug-14 ,265000-IT & Telecommunications,NZ900-Finance & Corporate Services,ATOS IT SERVICES UK LTD,1140952,25.78 ,IT peripherals/individual ordered software and equipment,
Ministry of Justice,MoJ HQ,29-Aug-14 ,265000-IT & Telecommunications,NZ900-Finance & Corporate Services,ATOS IT SERVICES UK LTD,1140952,25.78 ,IT peripherals/individual ordered software and equipment,
Ministry of Justice,MoJ HQ,29-Aug-14 ,265000-IT & Telecommunications,NZ900-Finance & Corporate Services,ATOS IT SERVICES UK LTD,1140952,25.78 ,IT peripherals/individual ordered software and equipment,
Ministry of Justice,MoJ HQ,29-Aug-14 ,265000-IT & Telecommunications,NZ900-Finance & Corporate Services,ATOS IT SERVICES UK LTD,1140952,111.45 ,IT peripherals/individual ordered software and equipment,
Ministry of Justice,MoJ HQ,29-Aug-14 ,265000-IT & Telecommunications,NZ900-Finance & Corporate Services,ATOS IT SERVICES UK LTD,1140952,78.26 ,IT peripherals/individual ordered software and equipment,
Ministry of Justice,MoJ HQ,29-Aug-14 ,265000-IT & Telecommunications,NZ900-Finance & Corporate Services,ATOS IT SERVICES UK LTD,1140952,111.45 ,IT peripherals/individual ordered software and equipment,
Ministry of Justice,MoJ HQ,29-Aug-14 ,265000-IT & Telecommunications,NZ900-Finance & Corporate Services,ATOS IT SERVICES UK LTD,1140952,111.45 ,IT peripherals/individual ordered software and equipment,
Ministry of Justice,MoJ HQ,29-Aug-14 ,265000-IT & Telecommunications,NZ900-Finance & Corporate Services,ATOS IT SERVICES UK LTD,1140952,82.78 ,IT peripherals/individual ordered software and equipment,
Ministry of Justice,MoJ HQ,29-Aug-14 ,265000-IT & Telecommunications,NZ900-Finance & Corporate Services,ATOS IT SERVICES UK LTD,1140952,82.78 ,IT peripherals/individual ordered software and equipment,
Ministry of Justice,MoJ HQ,29-Aug-14 ,265000-IT & Telecommunications,NZ900-Finance & Corporate Services,ATOS IT SERVICES UK LTD,1140952,78.26 ,IT peripherals/individual ordered software and equipment,
Ministry of Justice,MoJ HQ,29-Aug-14 ,265000-IT & Telecommunications,NZ900-Finance & Corporate Services,ATOS IT SERVICES UK LTD,1140952,25.23 ,IT peripherals/individual ordered software and equipment,
Ministry of Justice,MoJ HQ,29-Aug-14 ,265000-IT & Telecommunications,NZ900-Finance & Corporate Services,ATOS IT SERVICES UK LTD,1140952,78.26 ,IT peripherals/individual ordered software and equipment,
Ministry of Justice,MoJ HQ,29-Aug-14 ,265000-IT & Telecommunications,NZ900-Finance & Corporate Services,ATOS IT SERVICES UK LTD,1140952,25.23 ,IT peripherals/individual ordered software and equipment,
Ministry of Justice,MoJ HQ,29-Aug-14 ,265000-IT & Telecommunications,NZ900-Finance & Corporate Services,ATOS IT SERVICES UK LTD,1140952,11.62 ,IT peripherals/individual ordered software and equipment,
Ministry of Justice,MoJ HQ,29-Aug-14 ,265000-IT & Telecommunications,NZ900-Finance & Corporate Services,ATOS IT SERVICES UK LTD,1140952,78.26 ,IT peripherals/individual ordered software and equipment,
Ministry of Justice,MoJ HQ,18-Aug-14 ,265000-IT & Telecommunications,NZ900-Finance & Corporate Services,FUJITSU SERVICES LTD,1140163,"40,178.05 ",Monthly Fujitsu costs for Application Maintenance & Support charges for the YJB,
Ministry of Justice,MoJ HQ,18-Aug-14 ,265000-IT & Telecommunications,NZ900-Finance & Corporate Services,FUJITSU SERVICES LTD,1140163,"8,035.61 ",Monthly Fujitsu costs for Application Maintenance & Support charges for the YJB,
Ministry of Justice,MoJ HQ,18-Aug-14 ,265000-IT & Telecommunications,NZ900-Finance & Corporate Services,FUJITSU SERVICES LTD,1140163,-0.01 ,Cancelling entries,
Ministry of Justice,MoJ HQ,18-Aug-14 ,265000-IT & Telecommunications,NZ900-Finance & Corporate Services,FUJITSU SERVICES LTD,1140163,"4,412.71 ",Cancelling entries,
Ministry of Justice,MoJ HQ,18-Aug-14 ,265000-IT & Telecommunications,NZ900-Finance & Corporate Services,FUJITSU SERVICES LTD,1140163,"-4,412.71 ",Cancelling entries,
Ministry of Justice,MoJ HQ,18-Aug-14 ,265000-IT & Telecommunications,NZ900-Finance & Corporate Services,FUJITSU SERVICES LTD,1140163,"22,063.54 ",Monthly Fujitsu costs for Network Service charges for the YJB,
Ministry of Justice,MoJ HQ,21-Aug-14 ,265000-IT & Telecommunications,NZ900-Finance & Corporate Services,CGI IT UK LTD,1140371,"31,249.00 ",One-off CGI costs for IT License renewal for the UKSC,
Ministry of Justice,MoJ HQ,29-Aug-14 ,265000-IT & Telecommunications,NZ900-Finance & Corporate Services,ATOS IT SERVICES UK LTD,1140952,25.78 ,IT peripherals/individual ordered software and equipment,
Ministry of Justice,MoJ HQ,29-Aug-14 ,265000-IT & Telecommunications,NZ900-Finance & Corporate Services,ATOS IT SERVICES UK LTD,1140952,11.62 ,IT peripherals/individual ordered software and equipment,
Ministry of Justice,MoJ HQ,29-Aug-14 ,265000-IT & Telecommunications,NZ900-Finance & Corporate Services,ATOS IT SERVICES UK LTD,1140952,11.62 ,IT peripherals/individual ordered software and equipment,
Ministry of Justice,MoJ HQ,29-Aug-14 ,265000-IT & Telecommunications,NZ900-Finance & Corporate Services,ATOS IT SERVICES UK LTD,1140952,37.45 ,IT peripherals/individual ordered software and equipment,
Ministry of Justice,MoJ HQ,29-Aug-14 ,265000-IT & Telecommunications,NZ900-Finance & Corporate Services,ATOS IT SERVICES UK LTD,1140952,46.00 ,IT peripherals/individual ordered software and equipment,
Ministry of Justice,MoJ HQ,29-Aug-14 ,265000-IT & Telecommunications,NZ900-Finance & Corporate Services,ATOS IT SERVICES UK LTD,1140952,25.78 ,IT peripherals/individual ordered software and equipment,
Ministry of Justice,MoJ HQ,29-Aug-14 ,265000-IT & Telecommunications,NZ900-Finance & Corporate Services,ATOS IT SERVICES UK LTD,1140952,25.78 ,IT peripherals/individual ordered software and equipment,
Ministry of Justice,MoJ HQ,29-Aug-14 ,265000-IT & Telecommunications,NZ900-Finance & Corporate Services,ATOS IT SERVICES UK LTD,1140952,11.62 ,IT peripherals/individual ordered software and equipment,
Ministry of Justice,MoJ HQ,29-Aug-14 ,265000-IT & Telecommunications,NZ900-Finance & Corporate Services,ATOS IT SERVICES UK LTD,1140952,25.23 ,IT peripherals/individual ordered software and equipment,
Ministry of Justice,MoJ HQ,29-Aug-14 ,265000-IT & Telecommunications,NZ900-Finance & Corporate Services,ATOS IT SERVICES UK LTD,1140952,11.62 ,IT peripherals/individual ordered software and equipment,
Ministry of Justice,MoJ HQ,07-Aug-14 ,512000-Intangible GBV - Additions,NZ900-Finance & Corporate Services,SOPRA GROUP LTD,1139693,"219,070.25 ",Agile development of products across the Common Platform Programme,
Ministry of Justice,MoJ HQ,07-Aug-14 ,512000-Intangible GBV - Additions,NZ900-Finance & Corporate Services,SOPRA GROUP LTD,1139693,"43,814.05 ",Agile development of products across the Common Platform Programme,
Ministry of Justice,MoJ HQ,07-Aug-14 ,512000-Intangible GBV - Additions,NZ900-Finance & Corporate Services,SOPRA GROUP LTD,1139693,"120,758.60 ",Agile development of products across the Common Platform Programme,
Ministry of Justice,MoJ HQ,07-Aug-14 ,512000-Intangible GBV - Additions,NZ900-Finance & Corporate Services,SOPRA GROUP LTD,1139693,"24,151.72 ",Agile development of products across the Common Platform Programme,
Ministry of Justice,MoJ HQ,21-Aug-14 ,512000-Intangible GBV - Additions,NZ900-Finance & Corporate Services,CGI IT UK LTD,1140371,"100,464.00 ",Agile development of products for Court Scheduling Project,
Ministry of Justice,MoJ HQ,21-Aug-14 ,512000-Intangible GBV - Additions,NZ900-Finance & Corporate Services,CGI IT UK LTD,1140371,"20,092.80 ",Agile development of products for Court Scheduling Project,
Ministry of Justice,MoJ HQ,14-Aug-14 ,532000-Tangible GBV - Additions,NZ900-Finance & Corporate Services,VODAFONE LTD FORMERLY CABLE & WIRELESS UK,1140094,"93,181.14 ",Prison Courts Video Link,
Ministry of Justice,MoJ HQ,14-Aug-14 ,532000-Tangible GBV - Additions,NZ900-Finance & Corporate Services,VODAFONE LTD FORMERLY CABLE & WIRELESS UK,1140094,"18,636.23 ",Prison Courts Video Link,
Ministry of Justice,MoJ HQ,14-Aug-14 ,512000-Intangible GBV - Additions,NZ900-Finance & Corporate Services,TRIAD GROUP PLC,1140088,"54,100.00 ",Agile development of products across the Common Platform Programme,
Ministry of Justice,MoJ HQ,14-Aug-14 ,512000-Intangible GBV - Additions,NZ900-Finance & Corporate Services,TRIAD GROUP PLC,1140088,"10,820.00 ",Agile development of products across the Common Platform Programme,
Ministry of Justice,MoJ HQ,18-Aug-14 ,532000-Tangible GBV - Additions,NZ900-Finance & Corporate Services,MITIE JUSTICE LTD,1140205,"50,441.05 ",CJS Efficiency Programme,
Ministry of Justice,MoJ HQ,18-Aug-14 ,532000-Tangible GBV - Additions,NZ900-Finance & Corporate Services,MITIE JUSTICE LTD,1140205,"10,088.21 ",CJS Efficiency Programme,
Ministry of Justice,MoJ HQ,14-Aug-14 ,512000-Intangible GBV - Additions,NZ900-Finance & Corporate Services,TRIAD GROUP PLC,1140088,"50,300.00 ",Agile development of products across the Common Platform Programme,
Ministry of Justice,MoJ HQ,14-Aug-14 ,512000-Intangible GBV - Additions,NZ900-Finance & Corporate Services,TRIAD GROUP PLC,1140088,"10,060.00 ",Agile development of products across the Common Platform Programme,
Ministry of Justice,MoJ HQ,29-Aug-14 ,512000-Intangible GBV - Additions,NZ900-Finance & Corporate Services,CGI IT UK LTD,1140969,"49,024.00 ",Agile development of products across the Common Platform Programme,
Ministry of Justice,MoJ HQ,29-Aug-14 ,512000-Intangible GBV - Additions,NZ900-Finance & Corporate Services,CGI IT UK LTD,1140969,"9,804.80 ",Agile development of products across the Common Platform Programme,
Ministry of Justice,MoJ HQ,29-Aug-14 ,512000-Intangible GBV - Additions,NZ900-Finance & Corporate Services,CGI IT UK LTD,1140969,"49,024.00 ",Agile development of products across the Common Platform Programme,
Ministry of Justice,MoJ HQ,29-Aug-14 ,512000-Intangible GBV - Additions,NZ900-Finance & Corporate Services,CGI IT UK LTD,1140969,"9,804.80 ",Agile development of products across the Common Platform Programme,
Ministry of Justice,MoJ HQ,21-Aug-14 ,512000-Intangible GBV - Additions,NZ900-Finance & Corporate Services,CGI IT UK LTD,1140371,"49,024.00 ",Agile development of products across the Common Platform Programme,
Ministry of Justice,MoJ HQ,21-Aug-14 ,512000-Intangible GBV - Additions,NZ900-Finance & Corporate Services,CGI IT UK LTD,1140371,"9,804.80 ",Agile development of products across the Common Platform Programme,
Ministry of Justice,MoJ HQ,04-Aug-14 ,532000-Tangible GBV - Additions,NZ900-Finance & Corporate Services,VODAFONE LTD FORMERLY CABLE & WIRELESS UK,1139432,"44,702.72 ",Prison Courts Video Link,
Ministry of Justice,MoJ HQ,04-Aug-14 ,532000-Tangible GBV - Additions,NZ900-Finance & Corporate Services,VODAFONE LTD FORMERLY CABLE & WIRELESS UK,1139432,"8,940.54 ",Prison Courts Video Link,
Ministry of Justice,MoJ HQ,04-Aug-14 ,532000-Tangible GBV - Additions,NZ900-Finance & Corporate Services,MITIE JUSTICE LTD,1139347,"36,850.60 ",CJS Efficiency Programme,
Ministry of Justice,MoJ HQ,04-Aug-14 ,532000-Tangible GBV - Additions,NZ900-Finance & Corporate Services,MITIE JUSTICE LTD,1139347,"7,370.12 ",CJS Efficiency Programme,
Ministry of Justice,MoJ HQ,04-Aug-14 ,532000-Tangible GBV - Additions,NZ900-Finance & Corporate Services,TATE SECURITY TECHNOLOGY LIMITED,1139415,"36,308.14 ",CJS Efficiency Programme,
Ministry of Justice,MoJ HQ,04-Aug-14 ,532000-Tangible GBV - Additions,NZ900-Finance & Corporate Services,TATE SECURITY TECHNOLOGY LIMITED,1139415,"7,261.63 ",CJS Efficiency Programme,
Ministry of Justice,MoJ HQ,29-Aug-14 ,532000-Tangible GBV - Additions,NZ900-Finance & Corporate Services,MISCO,1141044,"35,255.20 ",Transforming ways to work,
Ministry of Justice,MoJ HQ,29-Aug-14 ,532000-Tangible GBV - Additions,NZ900-Finance & Corporate Services,TATE SECURITY TECHNOLOGY LIMITED,1141085,"34,573.77 ",CJS Efficiency Programme,
Ministry of Justice,MoJ HQ,29-Aug-14 ,532000-Tangible GBV - Additions,NZ900-Finance & Corporate Services,TATE SECURITY TECHNOLOGY LIMITED,1141085,"6,914.75 ",CJS Efficiency Programme,
Ministry of Justice,MoJ HQ,07-Aug-14 ,512000-Intangible GBV - Additions,NZ900-Finance & Corporate Services,TRIAD GROUP PLC,1139722,"31,600.00 ",Agile development of products across the Common Platform Programme,
Ministry of Justice,MoJ HQ,07-Aug-14 ,512000-Intangible GBV - Additions,NZ900-Finance & Corporate Services,TRIAD GROUP PLC,1139722,"6,320.00 ",Agile development of products across the Common Platform Programme,
Ministry of Justice,MoJ HQ,18-Aug-14 ,532000-Tangible GBV - Additions,NZ900-Finance & Corporate Services,MITIE JUSTICE LTD,1140205,"30,899.78 ",CJS Efficiency Programme,
Ministry of Justice,MoJ HQ,18-Aug-14 ,532000-Tangible GBV - Additions,NZ900-Finance & Corporate Services,MITIE JUSTICE LTD,1140205,"6,179.96 ",CJS Efficiency Programme,
Ministry of Justice,MoJ HQ,04-Aug-14 ,532000-Tangible GBV - Additions,NZ900-Finance & Corporate Services,VODAFONE LTD FORMERLY CABLE & WIRELESS UK,1139432,"30,473.27 ",Prison Courts Video Link,
Ministry of Justice,MoJ HQ,04-Aug-14 ,532000-Tangible GBV - Additions,NZ900-Finance & Corporate Services,VODAFONE LTD FORMERLY CABLE & WIRELESS UK,1139432,"6,094.65 ",Prison Courts Video Link,
Ministry of Justice,MoJ HQ,04-Aug-14 ,532000-Tangible GBV - Additions,NZ900-Finance & Corporate Services,MITIE JUSTICE LTD,1139347,"29,026.00 ",CJS Efficiency Programme,
Ministry of Justice,MoJ HQ,04-Aug-14 ,532000-Tangible GBV - Additions,NZ900-Finance & Corporate Services,MITIE JUSTICE LTD,1139347,"5,805.20 ",CJS Efficiency Programme,
Ministry of Justice,MoJ HQ,21-Aug-14 ,512000-Intangible GBV - Additions,NZ900-Finance & Corporate Services,CGI IT UK LTD,1140371,"28,813.00 ",CJS Efficiency Programme,
Ministry of Justice,MoJ HQ,26-Aug-14 ,532000-Tangible GBV - Additions,NZ900-Finance & Corporate Services,MITIE JUSTICE LTD,1140682,"27,336.50 ",CJS Efficiency Programme,
Ministry of Justice,MoJ HQ,26-Aug-14 ,532000-Tangible GBV - Additions,NZ900-Finance & Corporate Services,MITIE JUSTICE LTD,1140682,"5,467.30 ",CJS Efficiency Programme,
Ministry of Justice,MoJ HQ,04-Aug-14 ,532000-Tangible GBV - Additions,NZ900-Finance & Corporate Services,MITIE JUSTICE LTD,1139347,"26,699.55 ",CJS Efficiency Programme,
Ministry of Justice,MoJ HQ,04-Aug-14 ,532000-Tangible GBV - Additions,NZ900-Finance & Corporate Services,MITIE JUSTICE LTD,1139347,"5,339.91 ",CJS Efficiency Programme,
Ministry of Justice,MoJ HQ,04-Aug-14 ,532000-Tangible GBV - Additions,NZ900-Finance & Corporate Services,VODAFONE LTD FORMERLY CABLE & WIRELESS UK,1139432,"26,181.27 ",Prison Courts Video Link,
Ministry of Justice,MoJ HQ,04-Aug-14 ,532000-Tangible GBV - Additions,NZ900-Finance & Corporate Services,VODAFONE LTD FORMERLY CABLE & WIRELESS UK,1139432,"5,236.25 ",Prison Courts Video Link,
Ministry of Justice,MoJ HQ,28-Aug-14 ,532000-Tangible GBV - Additions,NZ900-Finance & Corporate Services,MITIE JUSTICE LTD,1140858,"25,638.08 ",CJS Efficiency Programme,
Ministry of Justice,MoJ HQ,28-Aug-14 ,532000-Tangible GBV - Additions,NZ900-Finance & Corporate Services,MITIE JUSTICE LTD,1140858,"5,127.62 ",CJS Efficiency Programme,
Ministry of Justice,MoJ HQ,07-Aug-14 ,532000-Tangible GBV - Additions,NZ900-Finance & Corporate Services,TATE SECURITY TECHNOLOGY LIMITED,1139707,"25,359.00 ",CJS Efficiency Programme,
Ministry of Justice,MoJ HQ,07-Aug-14 ,532000-Tangible GBV - Additions,NZ900-Finance & Corporate Services,TATE SECURITY TECHNOLOGY LIMITED,1139707,"5,071.80 ",CJS Efficiency Programme,
Ministry of Justice,MoJ HQ,04-Aug-14 ,532000-Tangible GBV - Additions,NZ900-Finance & Corporate Services,MITIE JUSTICE LTD,1139347,"25,094.15 ",CJS Efficiency Programme,
Ministry of Justice,MoJ HQ,04-Aug-14 ,532000-Tangible GBV - Additions,NZ900-Finance & Corporate Services,MITIE JUSTICE LTD,1139347,"5,018.83 ",CJS Efficiency Programme,
Ministry of Justice,MoJ HQ,21-Aug-14 ,512000-Intangible GBV - Additions,NZ900-Finance & Corporate Services,CGI IT UK LTD,1140371,"22,668.00 ",Secure Data Transfer,
Ministry of Justice,MoJ HQ,28-Aug-14 ,532000-Tangible GBV - Additions,NZ900-Finance & Corporate Services,MITIE JUSTICE LTD,1140858,"22,330.23 ",CJS Efficiency Programme,
Ministry of Justice,MoJ HQ,28-Aug-14 ,532000-Tangible GBV - Additions,NZ900-Finance & Corporate Services,MITIE JUSTICE LTD,1140858,"4,466.05 ",CJS Efficiency Programme,
Ministry of Justice,MoJ HQ,14-Aug-14 ,222003-CIS Labour TFM Estates,NZ900-Finance & Corporate Services,G4S FACILITIES MANAGEMENT (UK) LTD,1139960,"4,259.53 ",CJS Efficiency Programme,
Ministry of Justice,MoJ HQ,14-Aug-14 ,222003-CIS Labour TFM Estates,NZ900-Finance & Corporate Services,G4S FACILITIES MANAGEMENT (UK) LTD,1139960,"21,297.65 ",Network Optimisation Programme,
Ministry of Justice,MoJ HQ,14-Aug-14 ,222003-CIS Labour TFM Estates,NZ900-Finance & Corporate Services,G4S FACILITIES MANAGEMENT (UK) LTD,1139960,"4,259.53 ",Network Optimisation Programme,
Ministry of Justice,MoJ HQ,14-Aug-14 ,222003-CIS Labour TFM Estates,NZ900-Finance & Corporate Services,G4S FACILITIES MANAGEMENT (UK) LTD,1139960,"-4,259.53 ",Network Optimisation Programme,
Ministry of Justice,MoJ HQ,29-Aug-14 ,532000-Tangible GBV - Additions,NZ900-Finance & Corporate Services,TATE SECURITY TECHNOLOGY LIMITED,1141085,"21,161.85 ",CJS Efficiency Programme,
Ministry of Justice,MoJ HQ,29-Aug-14 ,532000-Tangible GBV - Additions,NZ900-Finance & Corporate Services,TATE SECURITY TECHNOLOGY LIMITED,1141085,"4,232.37 ",CJS Efficiency Programme,
Ministry of Justice,MoJ HQ,14-Aug-14 ,222003-CIS Labour TFM Estates,NZ900-Finance & Corporate Services,G4S FACILITIES MANAGEMENT (UK) LTD,1139960,"20,932.98 ",Network Optimisation Programme,
Ministry of Justice,MoJ HQ,14-Aug-14 ,222003-CIS Labour TFM Estates,NZ900-Finance & Corporate Services,G4S FACILITIES MANAGEMENT (UK) LTD,1139960,"4,186.60 ",Network Optimisation Programme,
Ministry of Justice,MoJ HQ,14-Aug-14 ,512000-Intangible GBV - Additions,NZ900-Finance & Corporate Services,STERIA LTD,1140075,"1,554,400.00 ",Transforming Rehabilitaion,
Ministry of Justice,MoJ HQ,07-Aug-14 ,512000-Intangible GBV - Additions,NZ900-Finance & Corporate Services,HP ENTERPRISE SERVICES UK LTD,1139571,"143,694.14 ",Prison NOM Information Systems - Live Service Bundle 9,
Ministry of Justice,MoJ HQ,04-Aug-14 ,512000-Intangible GBV - Additions,NZ900-Finance & Corporate Services,HP ENTERPRISE SERVICES UK LTD,1139310,"81,634.81 ",Prison NOM Information Systems - Live Service Bundle 9,
Ministry of Justice,MoJ HQ,04-Aug-14 ,512000-Intangible GBV - Additions,NZ900-Finance & Corporate Services,HP ENTERPRISE SERVICES UK LTD,1139310,"36,291.95 ",Browser Upgrade,
Ministry of Justice,MoJ HQ,18-Aug-14 ,532000-Tangible GBV - Additions,NZ900-Finance & Corporate Services,HP ENTERPRISE SERVICES UK LTD,1140175,"24,203.33 ",Transforming Rehabilitaion,
Ministry of Justice,MoJ HQ,14-Aug-14 ,512000-Intangible GBV - Additions,NZ900-Finance & Corporate Services,YOUTH JUSTICE BOARD FOR ENGLAND & WALES,4853,"293,723.74 ",YJB Asset Plus,
Ministry of Justice,MoJ HQ,29-Aug-14 ,265000-IT & Telecommunications,NZ900-Finance & Corporate Services,ATOS IT SERVICES UK LTD,1140952,234.78 ,IT peripherals/individual ordered software and equipment,
Ministry of Justice,MoJ HQ,29-Aug-14 ,265000-IT & Telecommunications,NZ900-Finance & Corporate Services,ATOS IT SERVICES UK LTD,1140952,11.62 ,IT peripherals/individual ordered software and equipment,
Ministry of Justice,MoJ HQ,29-Aug-14 ,265000-IT & Telecommunications,NZ900-Finance & Corporate Services,ATOS IT SERVICES UK LTD,1140952,82.78 ,IT peripherals/individual ordered software and equipment,
Ministry of Justice,MoJ HQ,29-Aug-14 ,265000-IT & Telecommunications,NZ900-Finance & Corporate Services,ATOS IT SERVICES UK LTD,1140952,82.78 ,IT peripherals/individual ordered software and equipment,
Ministry of Justice,MoJ HQ,29-Aug-14 ,265000-IT & Telecommunications,NZ900-Finance & Corporate Services,ATOS IT SERVICES UK LTD,1140952,11.62 ,IT peripherals/individual ordered software and equipment,
Ministry of Justice,MoJ HQ,29-Aug-14 ,265000-IT & Telecommunications,NZ900-Finance & Corporate Services,ATOS IT SERVICES UK LTD,1140952,25.78 ,IT peripherals/individual ordered software and equipment,
Ministry of Justice,MoJ HQ,29-Aug-14 ,265000-IT & Telecommunications,NZ900-Finance & Corporate Services,ATOS IT SERVICES UK LTD,1140952,25.78 ,IT peripherals/individual ordered software and equipment,
Ministry of Justice,MoJ HQ,29-Aug-14 ,265000-IT & Telecommunications,NZ900-Finance & Corporate Services,ATOS IT SERVICES UK LTD,1140952,116.08 ,IT peripherals/individual ordered software and equipment,
Ministry of Justice,MoJ HQ,29-Aug-14 ,265000-IT & Telecommunications,NZ900-Finance & Corporate Services,ATOS IT SERVICES UK LTD,1140952,82.78 ,IT peripherals/individual ordered software and equipment,
Ministry of Justice,MoJ HQ,29-Aug-14 ,265000-IT & Telecommunications,NZ900-Finance & Corporate Services,ATOS IT SERVICES UK LTD,1140952,111.45 ,IT peripherals/individual ordered software and equipment,
Ministry of Justice,MoJ HQ,29-Aug-14 ,265000-IT & Telecommunications,NZ900-Finance & Corporate Services,ATOS IT SERVICES UK LTD,1140952,83.96 ,IT peripherals/individual ordered software and equipment,
Ministry of Justice,MoJ HQ,29-Aug-14 ,265000-IT & Telecommunications,NZ900-Finance & Corporate Services,ATOS IT SERVICES UK LTD,1140952,164.00 ,IT peripherals/individual ordered software and equipment,
Ministry of Justice,MoJ HQ,29-Aug-14 ,265000-IT & Telecommunications,NZ900-Finance & Corporate Services,ATOS IT SERVICES UK LTD,1140952,164.00 ,IT peripherals/individual ordered software and equipment,
Ministry of Justice,MoJ HQ,29-Aug-14 ,265000-IT & Telecommunications,NZ900-Finance & Corporate Services,ATOS IT SERVICES UK LTD,1140952,164.00 ,IT peripherals/individual ordered software and equipment,
Ministry of Justice,MoJ HQ,29-Aug-14 ,265000-IT & Telecommunications,NZ900-Finance & Corporate Services,ATOS IT SERVICES UK LTD,1140952,46.00 ,IT peripherals/individual ordered software and equipment,
Ministry of Justice,MoJ HQ,29-Aug-14 ,265000-IT & Telecommunications,NZ900-Finance & Corporate Services,ATOS IT SERVICES UK LTD,1140952,46.00 ,IT peripherals/individual ordered software and equipment,
Ministry of Justice,MoJ HQ,29-Aug-14 ,265000-IT & Telecommunications,NZ900-Finance & Corporate Services,ATOS IT SERVICES UK LTD,1140952,46.00 ,IT peripherals/individual ordered software and equipment,
Ministry of Justice,MoJ HQ,29-Aug-14 ,265000-IT & Telecommunications,NZ900-Finance & Corporate Services,ATOS IT SERVICES UK LTD,1140952,46.00 ,IT peripherals/individual ordered software and equipment,
Ministry of Justice,MoJ HQ,29-Aug-14 ,265000-IT & Telecommunications,NZ900-Finance & Corporate Services,ATOS IT SERVICES UK LTD,1140952,128.90 ,IT peripherals/individual ordered software and equipment,
Ministry of Justice,MoJ HQ,29-Aug-14 ,265000-IT & Telecommunications,NZ900-Finance & Corporate Services,ATOS IT SERVICES UK LTD,1140952,25.78 ,IT peripherals/individual ordered software and equipment,
Ministry of Justice,MoJ HQ,29-Aug-14 ,265000-IT & Telecommunications,NZ900-Finance & Corporate Services,ATOS IT SERVICES UK LTD,1140952,25.78 ,IT peripherals/individual ordered software and equipment,
Ministry of Justice,MoJ HQ,29-Aug-14 ,265000-IT & Telecommunications,NZ900-Finance & Corporate Services,ATOS IT SERVICES UK LTD,1140952,46.00 ,IT peripherals/individual ordered software and equipment,
Ministry of Justice,MoJ HQ,29-Aug-14 ,265000-IT & Telecommunications,NZ900-Finance & Corporate Services,ATOS IT SERVICES UK LTD,1140952,128.90 ,IT peripherals/individual ordered software and equipment,
Ministry of Justice,MoJ HQ,29-Aug-14 ,265000-IT & Telecommunications,NZ900-Finance & Corporate Services,ATOS IT SERVICES UK LTD,1140952,25.78 ,IT peripherals/individual ordered software and equipment,
Ministry of Justice,MoJ HQ,29-Aug-14 ,265000-IT & Telecommunications,NZ900-Finance & Corporate Services,ATOS IT SERVICES UK LTD,1140952,25.78 ,IT peripherals/individual ordered software and equipment,
Ministry of Justice,MoJ HQ,29-Aug-14 ,265000-IT & Telecommunications,NZ900-Finance & Corporate Services,ATOS IT SERVICES UK LTD,1140952,25.78 ,IT peripherals/individual ordered software and equipment,
Ministry of Justice,MoJ HQ,29-Aug-14 ,265000-IT & Telecommunications,NZ900-Finance & Corporate Services,ATOS IT SERVICES UK LTD,1140952,25.78 ,IT peripherals/individual ordered software and equipment,
Ministry of Justice,MoJ HQ,29-Aug-14 ,265000-IT & Telecommunications,NZ900-Finance & Corporate Services,ATOS IT SERVICES UK LTD,1140952,25.78 ,IT peripherals/individual ordered software and equipment,
Ministry of Justice,MoJ HQ,29-Aug-14 ,265000-IT & Telecommunications,NZ900-Finance & Corporate Services,ATOS IT SERVICES UK LTD,1140952,25.78 ,IT peripherals/individual ordered software and equipment,
Ministry of Justice,MoJ HQ,29-Aug-14 ,265000-IT & Telecommunications,NZ900-Finance & Corporate Services,ATOS IT SERVICES UK LTD,1140952,25.78 ,IT peripherals/individual ordered software and equipment,
Ministry of Justice,MoJ HQ,29-Aug-14 ,265000-IT & Telecommunications,NZ900-Finance & Corporate Services,ATOS IT SERVICES UK LTD,1140952,25.78 ,IT peripherals/individual ordered software and equipment,
Ministry of Justice,MoJ HQ,29-Aug-14 ,265000-IT & Telecommunications,NZ900-Finance & Corporate Services,ATOS IT SERVICES UK LTD,1140952,"1,820.70 ",Costs of repairs to equipment ,
Ministry of Justice,MoJ HQ,29-Aug-14 ,265000-IT & Telecommunications,NZ900-Finance & Corporate Services,ATOS IT SERVICES UK LTD,1140952,25.23 ,IT peripherals/individual ordered software and equipment,
Ministry of Justice,MoJ HQ,29-Aug-14 ,265000-IT & Telecommunications,NZ900-Finance & Corporate Services,ATOS IT SERVICES UK LTD,1140952,43.22 ,IT peripherals/individual ordered software and equipment,
Ministry of Justice,MoJ HQ,29-Aug-14 ,265000-IT & Telecommunications,NZ900-Finance & Corporate Services,ATOS IT SERVICES UK LTD,1140952,164.00 ,IT peripherals/individual ordered software and equipment,
Ministry of Justice,MoJ HQ,29-Aug-14 ,265000-IT & Telecommunications,NZ900-Finance & Corporate Services,ATOS IT SERVICES UK LTD,1140952,164.00 ,IT peripherals/individual ordered software and equipment,
Ministry of Justice,MoJ HQ,29-Aug-14 ,265000-IT & Telecommunications,NZ900-Finance & Corporate Services,ATOS IT SERVICES UK LTD,1140952,164.00 ,IT peripherals/individual ordered software and equipment,
Ministry of Justice,MoJ HQ,29-Aug-14 ,265000-IT & Telecommunications,NZ900-Finance & Corporate Services,ATOS IT SERVICES UK LTD,1140952,46.00 ,IT peripherals/individual ordered software and equipment,
Ministry of Justice,MoJ HQ,29-Aug-14 ,265000-IT & Telecommunications,NZ900-Finance & Corporate Services,ATOS IT SERVICES UK LTD,1140952,265.63 ,IT peripherals/individual ordered software and equipment,
Ministry of Justice,MoJ HQ,11-Aug-14 ,265000-IT & Telecommunications,NZ900-Finance & Corporate Services,STERIA LTD,1139858,"22,937.45 ",Generic Appeals Processing System -  monthly support costs,
Ministry of Justice,MoJ HQ,11-Aug-14 ,265000-IT & Telecommunications,NZ900-Finance & Corporate Services,STERIA LTD,1139858,"4,587.49 ",Generic Appeals Processing System -  monthly support costs,
Ministry of Justice,MoJ HQ,14-Aug-14 ,265000-IT & Telecommunications,NZ900-Finance & Corporate Services,VODAFONE LTD (RETAIL),1140093,"41,958.07 ",Prison/Courts Call Launching Services,
Ministry of Justice,MoJ HQ,14-Aug-14 ,265000-IT & Telecommunications,NZ900-Finance & Corporate Services,VODAFONE LTD (RETAIL),1140093,"8,391.61 ",Prison/Courts Call Launching Services,
Ministry of Justice,MoJ HQ,21-Aug-14 ,265000-IT & Telecommunications,NZ900-Finance & Corporate Services,VODAFONE LTD (RETAIL),1140560,"23,220.24 ",Prison/Courts Call Launching Services,
Ministry of Justice,MoJ HQ,21-Aug-14 ,265000-IT & Telecommunications,NZ900-Finance & Corporate Services,VODAFONE LTD (RETAIL),1140560,"4,644.05 ",Prison/Courts Call Launching Services,
Ministry of Justice,MoJ HQ,22-Aug-14 ,610400-Debtors <1 year - Prepayments & Accrued Income,WW000-Balance Sheet,CITY OF WESTMINSTER,1140580,"598,384.00 ",Rates,
Ministry of Justice,MoJ HQ,22-Aug-14 ,610400-Debtors <1 year - Prepayments & Accrued Income,WW000-Balance Sheet,CITY OF WESTMINSTER,1140580,"331,289.88 ",Rates,
Ministry of Justice,MoJ HQ,18-Aug-14 ,710600-Creditor < 1 year - Payable to Consolidated Fund,WW000-Balance Sheet,HM TREASURY - CFER PAYOVER,4873,"46,214.76 ",Surrender to the Consolidated Fund,
Ministry of Justice,MoJ HQ,18-Aug-14 ,710600-Creditor < 1 year - Payable to Consolidated Fund,WW000-Balance Sheet,HM TREASURY - CFER PAYOVER,4873,"46,091.18 ",Surrender to the Consolidated Fund,
Ministry of Justice,MoJ HQ,22-Aug-14 ,610400-Debtors <1 year - Prepayments & Accrued Income,WW000-Balance Sheet,CITY OF WESTMINSTER,1140580,"85,842.00 ",Rates,
Ministry of Justice,MoJ HQ,29-Aug-14 ,265000-IT & Telecommunications,LZ600-Transforming Justice,ATOS IT SERVICES UK LTD,1140952,25.78 ,IT peripherals/individual ordered software and equipment,FAC
Ministry of Justice,MoJ HQ,29-Aug-14 ,265000-IT & Telecommunications,LZ600-Transforming Justice,ATOS IT SERVICES UK LTD,1140952,25.78 ,IT peripherals/individual ordered software and equipment,FAC
Ministry of Justice,MoJ HQ,29-Aug-14 ,265000-IT & Telecommunications,LZ600-Transforming Justice,ATOS IT SERVICES UK LTD,1140952,25.78 ,IT peripherals/individual ordered software and equipment,FAC
Ministry of Justice,MoJ HQ,26-Aug-14 ,263000-Other Contracted Out Services,LZ600-Transforming Justice,STAFFORDSHIRE COUNTY COUNCIL,1140725,"249,482.80 ","Provision of the Claims Management Regulation Compliance Office under contract to the MoJ for .  Costs are recovered in full from fees charged to regulated businesses, so is cost revenue neutral to MoJ. Period ending July 2014",FAC
Ministry of Justice,MoJ HQ,26-Aug-14 ,263000-Other Contracted Out Services,LZ600-Transforming Justice,STAFFORDSHIRE COUNTY COUNCIL,1140725,"49,896.56 ","Provision of the Claims Management Regulation Compliance Office under contract to the MoJ for .  Costs are recovered in full from fees charged to regulated businesses, so is cost revenue neutral to MoJ. Period ending July 2014",FAC
Ministry of Justice,MoJ HQ,29-Aug-14 ,265000-IT & Telecommunications,LZ600-Transforming Justice,ATOS IT SERVICES UK LTD,1140952,25.78 ,IT peripherals/individual ordered software and equipment,FAC
Ministry of Justice,MoJ HQ,29-Aug-14 ,265000-IT & Telecommunications,QZ500-Arms Length Bodies (CPG),ATOS IT SERVICES UK LTD,1140952,67.31 ,IT peripherals/individual ordered software and equipment,FAC
Ministry of Justice,MoJ HQ,29-Aug-14 ,265000-IT & Telecommunications,QZ500-Arms Length Bodies (CPG),ATOS IT SERVICES UK LTD,1140952,67.31 ,IT peripherals/individual ordered software and equipment,FAC
Ministry of Justice,MoJ HQ,29-Aug-14 ,265000-IT & Telecommunications,QZ500-Arms Length Bodies (CPG),ATOS IT SERVICES UK LTD,1140952,78.26 ,IT peripherals/individual ordered software and equipment,FAC
Ministry of Justice,MoJ HQ,29-Aug-14 ,265000-IT & Telecommunications,QZ500-Arms Length Bodies (CPG),ATOS IT SERVICES UK LTD,1140952,25.78 ,IT peripherals/individual ordered software and equipment,FAC
Ministry of Justice,MoJ HQ,29-Aug-14 ,265000-IT & Telecommunications,NZ900-Finance & Corporate Services,ATOS IT SERVICES UK LTD,1140952,51.56 ,IT peripherals/individual ordered software and equipment,FAC
Ministry of Justice,MoJ HQ,28-Aug-14 ,223000-Other Expenditure,NZ401-Finance Group Feeder,ALLEN LANE CONSULTANCY LTD,1140766,"1,402,050.00 ",Allen Lane fees for July 2014; call off requirement charges,FAC
Ministry of Justice,MoJ HQ,28-Aug-14 ,223000-Other Expenditure,NZ401-Finance Group Feeder,ALLEN LANE CONSULTANCY LTD,1140766,"280,410.00 ",Allen Lane fees for July 2014; call off requirement charges,FAC
Ministry of Justice,MoJ HQ,13-Aug-14 ,263000-Other Contracted Out Services,QZ600-CPG Other,LONDON BOROUGH OF SOUTHWARK#10007039794,1139875,"844,183.00 ",Justice Reinvestment Reward Monies,FAC
Ministry of Justice,MoJ HQ,29-Aug-14 ,265000-IT & Telecommunications,NZ401-Finance Group Feeder,ATOS IT SERVICES UK LTD,1140952,6.38 ,IT peripherals/individual ordered software and equipment,FAC
Ministry of Justice,MoJ HQ,29-Aug-14 ,265000-IT & Telecommunications,NZ401-Finance Group Feeder,ATOS IT SERVICES UK LTD,1140952,164.00 ,IT peripherals/individual ordered software and equipment,FAC
Ministry of Justice,MoJ HQ,29-Aug-14 ,265000-IT & Telecommunications,NZ401-Finance Group Feeder,ATOS IT SERVICES UK LTD,1140952,46.00 ,IT peripherals/individual ordered software and equipment,FAC
Ministry of Justice,MoJ HQ,29-Aug-14 ,265000-IT & Telecommunications,NZ401-Finance Group Feeder,ATOS IT SERVICES UK LTD,1140952,51.56 ,IT peripherals/individual ordered software and equipment,FAC
Ministry of Justice,MoJ HQ,29-Aug-14 ,265000-IT & Telecommunications,NZ401-Finance Group Feeder,ATOS IT SERVICES UK LTD,1140952,46.00 ,IT peripherals/individual ordered software and equipment,FAC
Ministry of Justice,MoJ HQ,26-Aug-14 ,212001-Agency staff,NZ401-Finance Group Feeder,PRICEWATERHOUSECOOPERS LLP,1140704,"41,830.00 ",Fees for to provide specialist internal audit resources to assist in the delivery of the planned audit programme invoice dated 30 June 2014,FAC
Ministry of Justice,MoJ HQ,26-Aug-14 ,212001-Agency staff,NZ401-Finance Group Feeder,PRICEWATERHOUSECOOPERS LLP,1140704,"8,366.00 ",Fees for to provide specialist internal audit resources to assist in the delivery of the planned audit programme invoice dated 30 June 2014,FAC
Ministry of Justice,MoJ HQ,29-Aug-14 ,265000-IT & Telecommunications,NZ900-Finance & Corporate Services,ATOS IT SERVICES UK LTD,1140952,66.67 ,IT peripherals/individual ordered software and equipment,FAC
Ministry of Justice,MoJ HQ,29-Aug-14 ,265000-IT & Telecommunications,NZ900-Finance & Corporate Services,ATOS IT SERVICES UK LTD,1140952,77.34 ,IT peripherals/individual ordered software and equipment,FAC
Ministry of Justice,MoJ HQ,29-Aug-14 ,265000-IT & Telecommunications,NZ900-Finance & Corporate Services,ATOS IT SERVICES UK LTD,1140952,77.34 ,IT peripherals/individual ordered software and equipment,FAC
Ministry of Justice,MoJ HQ,29-Aug-14 ,265000-IT & Telecommunications,NZ900-Finance & Corporate Services,ATOS IT SERVICES UK LTD,1140952,25.78 ,IT peripherals/individual ordered software and equipment,FAC
Ministry of Justice,MoJ HQ,29-Aug-14 ,265000-IT & Telecommunications,NZ900-Finance & Corporate Services,ATOS IT SERVICES UK LTD,1140952,51.56 ,IT peripherals/individual ordered software and equipment,FAC
Ministry of Justice,MoJ HQ,29-Aug-14 ,265000-IT & Telecommunications,NZ900-Finance & Corporate Services,ATOS IT SERVICES UK LTD,1140952,51.56 ,IT peripherals/individual ordered software and equipment,FAC
Ministry of Justice,MoJ HQ,29-Aug-14 ,265000-IT & Telecommunications,NZ900-Finance & Corporate Services,ATOS IT SERVICES UK LTD,1140952,77.34 ,IT peripherals/individual ordered software and equipment,FAC
Ministry of Justice,MoJ HQ,29-Aug-14 ,265000-IT & Telecommunications,NZ900-Finance & Corporate Services,ATOS IT SERVICES UK LTD,1140952,25.78 ,IT peripherals/individual ordered software and equipment,FAC
Ministry of Justice,MoJ HQ,29-Aug-14 ,265000-IT & Telecommunications,NZ900-Finance & Corporate Services,ATOS IT SERVICES UK LTD,1140952,77.34 ,IT peripherals/individual ordered software and equipment,FAC
Ministry of Justice,MoJ HQ,29-Aug-14 ,265000-IT & Telecommunications,NZ900-Finance & Corporate Services,ATOS IT SERVICES UK LTD,1140952,25.78 ,IT peripherals/individual ordered software and equipment,FAC
Ministry of Justice,MoJ HQ,29-Aug-14 ,265000-IT & Telecommunications,NZ900-Finance & Corporate Services,ATOS IT SERVICES UK LTD,1140952,25.78 ,IT peripherals/individual ordered software and equipment,FAC
Ministry of Justice,MoJ HQ,29-Aug-14 ,265000-IT & Telecommunications,NZ900-Finance & Corporate Services,ATOS IT SERVICES UK LTD,1140952,25.78 ,IT peripherals/individual ordered software and equipment,FAC
Ministry of Justice,MoJ HQ,29-Aug-14 ,265000-IT & Telecommunications,NZ900-Finance & Corporate Services,ATOS IT SERVICES UK LTD,1140952,11.17 ,IT peripherals/individual ordered software and equipment,FAC
Ministry of Justice,MoJ HQ,29-Aug-14 ,265000-IT & Telecommunications,NZ900-Finance & Corporate Services,ATOS IT SERVICES UK LTD,1140952,78.26 ,IT peripherals/individual ordered software and equipment,FAC
Ministry of Justice,MoJ HQ,29-Aug-14 ,265000-IT & Telecommunications,NZ900-Finance & Corporate Services,ATOS IT SERVICES UK LTD,1140952,11.17 ,IT peripherals/individual ordered software and equipment,FAC
Ministry of Justice,MoJ HQ,29-Aug-14 ,265000-IT & Telecommunications,NZ900-Finance & Corporate Services,ATOS IT SERVICES UK LTD,1140952,25.23 ,IT peripherals/individual ordered software and equipment,FAC
Ministry of Justice,MoJ HQ,29-Aug-14 ,265000-IT & Telecommunications,NZ900-Finance & Corporate Services,ATOS IT SERVICES UK LTD,1140952,11.17 ,IT peripherals/individual ordered software and equipment,FAC
Ministry of Justice,MoJ HQ,29-Aug-14 ,265000-IT & Telecommunications,NZ900-Finance & Corporate Services,ATOS IT SERVICES UK LTD,1140952,25.78 ,IT peripherals/individual ordered software and equipment,FAC
Ministry of Justice,MoJ HQ,29-Aug-14 ,265000-IT & Telecommunications,NZ900-Finance & Corporate Services,ATOS IT SERVICES UK LTD,1140952,11.62 ,IT peripherals/individual ordered software and equipment,FAC
Ministry of Justice,MoJ HQ,29-Aug-14 ,265000-IT & Telecommunications,NZ900-Finance & Corporate Services,ATOS IT SERVICES UK LTD,1140952,78.26 ,IT peripherals/individual ordered software and equipment,FAC
Ministry of Justice,MoJ HQ,29-Aug-14 ,265000-IT & Telecommunications,NZ900-Finance & Corporate Services,ATOS IT SERVICES UK LTD,1140952,11.17 ,IT peripherals/individual ordered software and equipment,FAC
Ministry of Justice,MoJ HQ,29-Aug-14 ,265000-IT & Telecommunications,NQ901-MOJ Procurement Feeder,ATOS IT SERVICES UK LTD,1140952,85.87 ,IT peripherals/individual ordered software and equipment,FAC
Ministry of Justice,MoJ HQ,29-Aug-14 ,265000-IT & Telecommunications,NQ901-MOJ Procurement Feeder,ATOS IT SERVICES UK LTD,1140952,164.00 ,IT peripherals/individual ordered software and equipment,FAC
Ministry of Justice,MoJ HQ,29-Aug-14 ,265000-IT & Telecommunications,NQ901-MOJ Procurement Feeder,ATOS IT SERVICES UK LTD,1140952,46.00 ,IT peripherals/individual ordered software and equipment,FAC
Ministry of Justice,MoJ HQ,29-Aug-14 ,265000-IT & Telecommunications,NQ901-MOJ Procurement Feeder,ATOS IT SERVICES UK LTD,1140952,25.78 ,IT peripherals/individual ordered software and equipment,FAC
Ministry of Justice,MoJ HQ,29-Aug-14 ,265000-IT & Telecommunications,NQ901-MOJ Procurement Feeder,ATOS IT SERVICES UK LTD,1140952,46.00 ,IT peripherals/individual ordered software and equipment,FAC
Ministry of Justice,MoJ HQ,29-Aug-14 ,265000-IT & Telecommunications,NQ901-MOJ Procurement Feeder,ATOS IT SERVICES UK LTD,1140952,82.78 ,IT peripherals/individual ordered software and equipment,FAC
Ministry of Justice,MoJ HQ,21-Aug-14 ,263000-Other Contracted Out Services,QZ500-Arms Length Bodies (CPG),NATIONAL SAVINGS & INVESTMENTS,4881,"443,980.39 ",Operational service charges for the Court Funds Office under contract to the MoJ for the 2014/15 Financial Year,FAC
Ministry of Justice,MoJ HQ,29-Aug-14 ,265000-IT & Telecommunications,QZ500-Arms Length Bodies (CPG),ATOS IT SERVICES UK LTD,1140952,328.00 ,"Large Form Laptop - HP EliteBook 8570p (15.6"" screen)",FAC
Ministry of Justice,MoJ HQ,29-Aug-14 ,265000-IT & Telecommunications,QZ500-Arms Length Bodies (CPG),ATOS IT SERVICES UK LTD,1140952,46.00 ,IT peripherals/individual ordered software and equipment,FAC
Ministry of Justice,MoJ HQ,29-Aug-14 ,265000-IT & Telecommunications,QZ500-Arms Length Bodies (CPG),ATOS IT SERVICES UK LTD,1140952,46.00 ,IT peripherals/individual ordered software and equipment,FAC
Ministry of Justice,MoJ HQ,29-Aug-14 ,265000-IT & Telecommunications,QZ500-Arms Length Bodies (CPG),ATOS IT SERVICES UK LTD,1140952,92.00 ,IT peripherals/individual ordered software and equipment,FAC
Ministry of Justice,MoJ HQ,29-Aug-14 ,265000-IT & Telecommunications,QZ500-Arms Length Bodies (CPG),ATOS IT SERVICES UK LTD,1140952,82.78 ,IT peripherals/individual ordered software and equipment,FAC
Ministry of Justice,MoJ HQ,21-Aug-14 ,212001-Agency staff,QY200-OU10 Billback,CAPITA BUSINESS SERVICES LTD,1140367,"497,330.04 ",Fees and Expenses for week ending 13.08.2014,FAC
Ministry of Justice,MoJ HQ,21-Aug-14 ,212001-Agency staff,QY200-OU10 Billback,CAPITA BUSINESS SERVICES LTD,1140367,"99,466.01 ",Fees and Expenses for week ending 13.08.2014,FAC
Ministry of Justice,MoJ HQ,11-Aug-14 ,212001-Agency staff,QY200-OU10 Billback,CAPITA BUSINESS SERVICES LTD,1139773,"470,566.05 ",Fees and Expenses for week ending 30.07.2014,FAC
Ministry of Justice,MoJ HQ,11-Aug-14 ,212001-Agency staff,QY200-OU10 Billback,CAPITA BUSINESS SERVICES LTD,1139773,"94,113.21 ",Fees and Expenses for week ending 30.07.2014,FAC
Ministry of Justice,MoJ HQ,26-Aug-14 ,212001-Agency staff,QY200-OU10 Billback,CAPITA BUSINESS SERVICES LTD,1140611,"440,079.36 ",Fees and Expenses for week ending 20.08.2014,FAC
Ministry of Justice,MoJ HQ,26-Aug-14 ,212001-Agency staff,QY200-OU10 Billback,CAPITA BUSINESS SERVICES LTD,1140611,"88,015.87 ",Fees and Expenses for week ending 20.08.2014,FAC
Ministry of Justice,MoJ HQ,14-Aug-14 ,212001-Agency staff,QY200-OU10 Billback,CAPITA BUSINESS SERVICES LTD,1139916,"434,934.16 ",Fees and Expenses for week ending 06.08.2014,FAC
Ministry of Justice,MoJ HQ,14-Aug-14 ,212001-Agency staff,QY200-OU10 Billback,CAPITA BUSINESS SERVICES LTD,1139916,"86,986.83 ",Fees and Expenses for week ending 06.08.2014,FAC
Ministry of Justice,MoJ HQ,29-Aug-14 ,212001-Agency staff,QY200-OU10 Billback,CAPITA BUSINESS SERVICES LTD,1140968,"379,405.34 ",Fees and Expenses for week ending 28.08.2014,FAC
Ministry of Justice,MoJ HQ,29-Aug-14 ,212001-Agency staff,QY200-OU10 Billback,CAPITA BUSINESS SERVICES LTD,1140968,"75,881.07 ",Fees and Expenses for week ending 28.08.2014,FAC
Ministry of Justice,MoJ HQ,04-Aug-14 ,265000-IT & Telecommunications,QY200-OU10 Billback,ATOS IT SERVICES UK LTD,1139219,"344,242.09 ",Internet Protocol Telephony Charges,FAC
Ministry of Justice,MoJ HQ,04-Aug-14 ,265000-IT & Telecommunications,QY200-OU10 Billback,ATOS IT SERVICES UK LTD,1139219,"68,848.42 ",Internet Protocol Telephony Charges,FAC
Ministry of Justice,MoJ HQ,04-Aug-14 ,265000-IT & Telecommunications,QY200-OU10 Billback,ATOS IT SERVICES UK LTD,1139219,"197,076.29 ",Sustainable Print Service (SPS),FAC
Ministry of Justice,MoJ HQ,04-Aug-14 ,265000-IT & Telecommunications,QY200-OU10 Billback,ATOS IT SERVICES UK LTD,1139219,"114,094.34 ",CCN 2277 - Network Optimisation Programme WALK IN TAKE OVER Charges,FAC
Ministry of Justice,MoJ HQ,04-Aug-14 ,265000-IT & Telecommunications,QY200-OU10 Billback,ATOS IT SERVICES UK LTD,1139219,"22,818.87 ",CCN 2277 - Network Optimisation Programme WALK IN TAKE OVER Charges,FAC
Ministry of Justice,MoJ HQ,07-Aug-14 ,265000-IT & Telecommunications,QY200-OU10 Billback,ATOS IT SERVICES UK LTD,1139477,"69,826.85 ","Provision of Telephony Service for Non-WALK IN TAKE OVER ex Cable&Wireless
 PNN3 Lines -  01/04/2013 to 18/10/2016",FAC
Ministry of Justice,MoJ HQ,07-Aug-14 ,265000-IT & Telecommunications,QY200-OU10 Billback,ATOS IT SERVICES UK LTD,1139477,"13,965.37 ","Provision of Telephony Service for Non-WALK IN TAKE OVER ex Cable&Wireless
 PNN3 Lines -  01/04/2013 to 18/10/2017",FAC
Ministry of Justice,MoJ HQ,14-Aug-14 ,265000-IT & Telecommunications,QY200-OU10 Billback,BT TELECOMMUNICATIONS PLC,1139907,"6,900.03 ",Provision of telephony services and equipment for FY 13-14,FAC
Ministry of Justice,MoJ HQ,14-Aug-14 ,265000-IT & Telecommunications,QY200-OU10 Billback,BT TELECOMMUNICATIONS PLC,1139907,"-6,900.03 ",Provision of telephony services and equipment for FY 13-14,FAC
Ministry of Justice,MoJ HQ,14-Aug-14 ,265000-IT & Telecommunications,QY200-OU10 Billback,BT TELECOMMUNICATIONS PLC,1139907,"34,486.65 ",Provision of telephony services and equipment for FY 13-14,FAC
Ministry of Justice,MoJ HQ,14-Aug-14 ,265000-IT & Telecommunications,QY200-OU10 Billback,BT TELECOMMUNICATIONS PLC,1139907,13.50 ,Provision of telephony services and equipment for FY 13-14,FAC
Ministry of Justice,MoJ HQ,14-Aug-14 ,265000-IT & Telecommunications,QY200-OU10 Billback,BT TELECOMMUNICATIONS PLC,1139907,"6,897.33 ",Provision of telephony services and equipment for FY 13-14,FAC
Ministry of Justice,MoJ HQ,28-Aug-14 ,265000-IT & Telecommunications,QY200-OU10 Billback,VODAFONE CORPORATE LTD,1140936,"6,215.26 ",Provision of mobile telephony services and equipment for FY 13-14,FAC
Ministry of Justice,MoJ HQ,28-Aug-14 ,265000-IT & Telecommunications,QY200-OU10 Billback,VODAFONE CORPORATE LTD,1140936,"-6,215.26 ",Provision of mobile telephony services and equipment for FY 13-14,FAC
Ministry of Justice,MoJ HQ,28-Aug-14 ,265000-IT & Telecommunications,QY200-OU10 Billback,VODAFONE CORPORATE LTD,1140936,"30,810.90 ",Provision of mobile telephony services and equipment for FY 13-14,FAC
Ministry of Justice,MoJ HQ,28-Aug-14 ,265000-IT & Telecommunications,QY200-OU10 Billback,VODAFONE CORPORATE LTD,1140936,265.41 ,Provision of mobile telephony services and equipment for FY 13-14,FAC
Ministry of Justice,MoJ HQ,28-Aug-14 ,265000-IT & Telecommunications,QY200-OU10 Billback,VODAFONE CORPORATE LTD,1140936,"6,162.18 ",Provision of mobile telephony services and equipment for FY 13-14,FAC
Ministry of Justice,MoJ HQ,04-Aug-14 ,265000-IT & Telecommunications,QY200-OU10 Billback,VODAFONE CORPORATE LTD,1139431,"30,038.50 ",Provision of mobile telephony services and equipment for FY 13-14,FAC
Ministry of Justice,MoJ HQ,04-Aug-14 ,265000-IT & Telecommunications,QY200-OU10 Billback,VODAFONE CORPORATE LTD,1139431,35.47 ,Provision of mobile telephony services and equipment for FY 13-14,FAC
Ministry of Justice,MoJ HQ,04-Aug-14 ,265000-IT & Telecommunications,QY200-OU10 Billback,VODAFONE CORPORATE LTD,1139431,278.83 ,Provision of mobile telephony services and equipment for FY 13-14,FAC
Ministry of Justice,MoJ HQ,04-Aug-14 ,265000-IT & Telecommunications,QY200-OU10 Billback,VODAFONE CORPORATE LTD,1139431,"6,007.70 ",Provision of mobile telephony services and equipment for FY 13-14,FAC
Ministry of Justice,MoJ HQ,04-Aug-14 ,265000-IT & Telecommunications,QY200-OU10 Billback,ATOS IT SERVICES UK LTD,1139219,"22,828.13 ",CCN 2277 - Network Optimisation Programme Internet Protocol Telephony Charges,FAC
Ministry of Justice,MoJ HQ,04-Aug-14 ,265000-IT & Telecommunications,QY200-OU10 Billback,ATOS IT SERVICES UK LTD,1139219,"4,565.63 ",CCN 2277 - Network Optimisation Programme Internet Protocol Telephony Charges,FAC
Ministry of Justice,MoJ HQ,14-Aug-14 ,223000-Other Expenditure,QY300-Fleet Car Mgmt,ALLSTAR BUSINESS SOLUTIONS LTD,1139883,-0.31 ,Provision of lease cars and related costs for  FY 13-14,FAC
Ministry of Justice,MoJ HQ,14-Aug-14 ,223000-Other Expenditure,QY300-Fleet Car Mgmt,ALLSTAR BUSINESS SOLUTIONS LTD,1139883,"25,407.92 ",Provision of lease cars and related costs for  FY 13-14,FAC
Ministry of Justice,MoJ HQ,14-Aug-14 ,223000-Other Expenditure,QY300-Fleet Car Mgmt,ALLSTAR BUSINESS SOLUTIONS LTD,1139883,"5,081.58 ",Provision of lease cars and related costs for  FY 13-14,FAC
Ministry of Justice,MoJ HQ,07-Aug-14 ,223000-Other Expenditure,QY300-Fleet Car Mgmt,VOLKSWAGEN GROUP LEASING,1139728,"22,123.18 ",Provision of lease cars and related costs for  FY 13-14,FAC
Ministry of Justice,MoJ HQ,07-Aug-14 ,223000-Other Expenditure,QY300-Fleet Car Mgmt,VOLKSWAGEN GROUP LEASING,1139728,"4,424.64 ",Provision of lease cars and related costs for  FY 13-14,FAC
